Workbook

Sheet Instructions
A1: RAD Inventory Assessment Tool for PHAs
A2: INSTRUCTIONS
A3: Overview
A4: The RAD Inventory Assessment Tool is designed to help public housing agencies (PHAs) make a first-level assessment of properties in their inventory for potential conversion of assistance from public housing to long-term Section 8 contracts under the Rental Assistance Demonstration (RAD). A helpful initial step in such analysis is to estimate how much permanent mortgage debt could be supported by “current funding” under the public housing program when converted to Section 8 assistance to help meet identified capital needs. With this estimate, a PHA can begin to structure a more thorough Income and Expense statement (or Operating Budget) as well as Sources and Uses of funds (Development Budget).
A5: In some cases, the maximum supportable first-mortgage debt may offer a sufficient amount of financing to meet the capital needs of a project. In other cases, it will be necessary for the PHA to obtain other sources of subordinate debt, equity and/or grant financing to make the project feasible. There is no requirement under RAD to assume any level of debt if a conversion is feasible without debt. Additionally, it may be prudent to reduce the amount of supportable debt by coupling it with subordinate financing or capital grants to improve a project's cash flow. A PHA might consider applying its own public housing Operating or Capital Funds (permitted under RAD as a statutory waiver) as an additional source of capital. Other public and private sources, such as state and local CDGB and HOME funds or social investment funds, can be structured as subordinate financing. For projects with higher capital needs, PHAs are encouraged to consider accessing private equity investments utilizing either 4% or 9% Low Income Housing Tax Credits (LIHTCs). In all cases involving multiple sources of financing, particularly LIHTCs, PHAs are strongly encouraged to enlist advisors, development team members and/or partners in needed financing for a potential conversion of assistance under RAD.
A6: The Tool is preloaded with information from HUD systems on each Asset Management Project (project) in a PHA’s portfolio, including the number and bedroom size of units and current public housing funding. The Tool also addresses various underwriting assumptions related to generating a preliminary Operating and Development budgets. The user only needs to enter a minimal amount of data in order to generate initial results for each project. The user can then modify any of the information supplied, or any of the assumptions or formulas, to perform more detailed ‘what-if’ analyses.
A7: For more information on RAD, please see PIH Notice 2012-32 or visit the RAD website at www.hud.gov/rad. Additional information on preparing a RAD application is provided in the RAD Conversion Guide, which can also be accessed from the RAD website.
A9: How the Tool Works
A10: There are two types of cells:
A11: ► | B11: Green cells with bold borders are user inputs. The user can modify the data in these cells to help refine the analysis
A12: ► | B12: Black cells are formulas that are locked.
A13: Additionally, throughout the tool are blue question boxes. By holding the cursor over these cells, the user can see additional information or suggestions specific to that area of the worksheet.
A15: Step 1: Enter Global Inputs
A16: Navigate to the Global Inputs Tab (which appears on the bottom of this Excel window). On this tab, the user must:
A17: 1) | B17: Enter the five digit PHA code, e.g., MI011 (Monroe, MI Housing Commission). If you are unsure of the PHA code, you can look up the PHA in the PHA Code Tab.
A18: 2) | B18: Click on the “Populate Data for All Properties for this PHA” button. Once clicked, the tool will populate data for all properties for this PHA on the Inventory Overview Tab. (You will see the tool go through the population routine and then return to the Global Inputs Tab.). Note: While intended primarily for PHA use, the Tool contains only publicly available/non-confidential. The pre-population routine works only once. If you are using this tool for multiple PHAs, you will need to open a new version of the tool where the radio button has not been engaged. You can then save a file for each PHA.
A19: 3) | B19: Enter the First Mortgage Financing Terms (rate, amortization, term, etc.). These terms will then apply to all projects in your inventory. (On the next tab, you will be able to modify these terms for any individual project.)
A20: 4) | B20: Select the type of conversion: PBRA or PBV from the drop-down box. (For the purposes of this tool, this choice affects the different rent caps under RAD for PBRA and PBV conversions.)
A21: 5) | B21: Enter whether you would like the tool to auto-populate an initial operating expenses estimate for each project with one of the options in the drop-down box or begin each project blank.
A22: You’re now finished with the Global Inputs Tab.
A23: Step 2: Build an Initial Income and Expenses Budget
A24: Click on Inventory Overview Tab. The Tool will now display a first-level, simplified Income and Expense Budget for each project in the PHA’s inventory, including the estimated first mortgage debt that each project can support based on the global financing terms that the user entered, operating expenses (if the user selected an estimate), and the Tool’s pre-loaded underwriting assumptions. In addition to modifying the data or assumptions in this section (Section 1), the user can click on the buttons to reveal Sections 2 and 3, where the user can make additional property-specific adjustments to fine-tune the pro-forma and first mortgage estimates. Some of the key underwriting assumptions that the Tool begins with, and that can be modified by the user, include: Vacancy loss of 5%; Bad debt loss of 2%; Other Income of $120 per unit per annum; and Replacement reserves of $500 per unit per annum.
A25: Step 3: Build an Initial Sources & Uses Budget
A26: Now the user can build out a more detailed development budget, by using the Tool's Sources and Uses template. For building out Sources, the user can begin with the estimated first mortgage debt provided in Step 2. If additional funding is likely to be needed to address a given level of capital rehabilitation or construction, the user should consider the availability of soft second mortgages or subordinated debt from a variety of potential sources. Some of these are controlled by the PHA and some are available to affordable housing projects generally through state, local and private sources. For filling in Uses, the user should begin with the estimated rehab/construction costs for the project and then estimate additional project costs including professional fees, loan fees and costs, reserves and developer fees.
A27: If Sources and Uses do not balance, a user can review the Tax Credit Estimator in the Tool below the Sources and Uses template. Before using the Estimator, be sure to make adjustments to Acquisition Cost, Operating Reserves and Developer Fee, which are substantively different in transactions involving tax credits and/or impact the equity that could be raised. Additionally, the acquisition cost of the units is typically lent to the project as Seller Take-Back Financing, which should appear then as a Source. Guidance for those changes is provided in the blue box adjacent to the specific line item. Once you have made these changes, the amount shown in the Tax Credit Estimator already deducts certain LIHTC-related transaction costs, including additional legal fees and bond issuance costs (if applicable), and so represents a net equity figure. This is simply an estimate and users who anticipate using LIHTC should contact an experienced advisor early in the process.
A28: Finally, based on the 1) first mortgage debt proceeds indicated in the Sources and Uses, 2) inflation factors for rents, expenses, and replacement reserves, and 3) the number of years a user would like to project out, the Tool estimates the amount of the debt service and the debt coverage ratio in a future year. The trending of operating Income and Expenses to reflect inflation will be an important underwriting criterion for some affordable housing lenders, and especially to LIHTC investors
A29: Additional Notes on Use
A30: Saving: IMPORTANT NOTE - The workbook's Excel file format (.xlsm) must be retained. Do not change the file type or all macros/radio buttons may be deactivated.
A31: Printing: The Inventory Tab is preset to print only Section 1 (Operating Pro Forma and Section 4 (Sources & Uses). A user may change the print area in the Page Setup ribbon.
A32: Multiple PHAs: If you are using this tool for multiple PHAs, be sure to start with the original version of the tool for each PHA; the pre-population routine will only work if the tool is in its original state (i.e. PHA Code = "Blank") and the “Populate Data For All Properties for this PHA” button has not been engaged.
A33: Changing HUD’s Assumptions: The tool begins with initial underwriting assumptions, which are applied to all projects (e.g. vacancy rate of 5%). The user can customize these by project or can modify the global assumptions. To the right of the last project column on the Inventory Overview tab, you will find a number of these standard economic assumptions in blue bold font that the PHA can modify.
A34: Further Customization: HUD has also designed this workbook so that it can be customized by users. The password is "RAD2." Before customizing the workbook, be sure you have completed the pre-population routine in the Global Inputs Tab and saved a copy of the resulting pre-populated workbook.
A36: Technical Notes
A37: Disclaimer: HUD does not warranty any of the formulas, data, or assumptions included in this tool. This tool is for planning purposes only.
A39: To create this tool, HUD made a number of assumptions, all of which a user may modify:
A40: 1. | B40: Project and Unit information come from a PIC extract from 6/8/12.
A41: 2. | B41: Contract Rents are calculated based on Attachment 1C of PIH Notice 2012-32 using the 2012 Appropriation.
A42: a. | B42: The Operating Subsidy was derived from Form-52723, taking the following steps: Step 1: Combine 1) PEL [Section 3 Part A, Line 03 (PUM inflated PEL)] + 2) UEL [Section 3 Part A, Line 05 (PUM inflated UEL)] + 3) Add-ons [Section 3 Part A, Line 07-15] (excluding Asset Repositioning Fee [Line14] and Resident Partipation Funding [Line 11], divided by Total Unit Months + 4) Resident Participation Funding [$25, divided by 12]. The result is a PUM amount. Step 2: Subtract Adjusted Formula Income [Section 3 Part B, Line 03 (PUM adjusted Formula Income)] Step 3: Mutliply the result by the current year's pro-ration The Result is the derived PUM Operating Subsidy under RAD. (For MTW agencies, HUD used the average per unit operating subsidy and the reported tenant rents from the 50058).
A43: b. | B43: For the Capital subsidy, HUD used the per unit subsidy amount calculated for the Capital Fund formula for 2012 grants based on units counts as of 9/30/2011. Actual amounts may differ if the unit counts of the proposed converting project differ from the standing unit count as of 9/30/2011.
A44: c. | B44: Tenant Rents are based on Adjusted Formula Income [Section 3 Part B, Line 03 (PUM adjusted Formula Income)] from the Form-52723
A45: d. | B45: A project with a null value for Operating Subsidy, Capital Subsidy, or Tenant rents, indicates that the project does not receive one or more of these revenue streams in 2012. If the project is eligible for subsidy, or would be after rehabilitation under RAD, you can modify this information in Rows 71-73 of the Inventory Overview tab.
A46: e. | B46: The calculation of contract rents for MTW agencies with an alternative subsidy calculation under the public housing program differs from the approach illustrated above because their Operating subsidy is not currently allocated at a project level. For these agencies, HUD has calculated a per-unit Operating subsidy based on each agency’s Operating Subsidy grant. For tenant rents, this tool uses data provided in the 50058.
A47: 3. | B47: Operating Expenses – The option to auto-populate operating expenses with 95% of Formula Expenses calculates the operating expenses for each project with 95% of the sum of Project Expense Levels (PELs), Utility Expense Levels (UELs), and Add-ons (excluding Asset Repositioning Fee). (For alternative-subsidy MTWs, HUD used the average PEL, UEL, and Add-on for the metro area in which the agency is located.) The option to auto-populate operating expenses with Mark-to-Market Comparables utilizes a limited sample size of 1,500 properties and 121,000 units and are representative only of the M2M portfolio. Actual results may for any given property due to a number of project and market factors.
A48: 4. | B48: Fair Market Rents were pulled from HUD’s Final FY 12 FMRs. For some projects, where HUD was unable to map the project to the FMR database, HUD used the state-wide FMR. The tool uses FMR data to calculate the applicable rent caps.
A49: 5. | B49: Utility Allowance data is extracted from PIC. Where such data is not available, HUD used the national average of $38 PUPM. The tool uses Utility Allowance data only for the purposes of determining the applicable rent caps (for example, for PBV conversions, contract rents cannot be greater than 110% of the FMR adjusted for Utility Allowances).
A50: 6. | B50: Market Rents are estimated at 93% of Fair Market Rents. This estimate is based on a national comparison of rents found in the Housing Choice Voucher program compared to FMRs. The tool uses the estimate of market rent to calculate the applicable rent caps.

Sheet Global Inputs
A1: =+Instructions!$A$1 -> RAD Inventory Assessment Tool for PHAs
A3: Global Inputs (Affecting All Properties)
K5: WI085 | L5: hard code equal to D6 in master
A6: PHA Code | D6: WI085 | K6: =ROW(' '!$A$3)-1 -> 2 | L6: is the row offset into the HUD data table
A7: PHA Name | D7: =IF(ISERROR(VLOOKUP(D6,'PHA List'!$A$2:$B$3141,2,FALSE)),"FATAL ERROR: PHA NUMBER NOT APPLICABLE",VLOOKUP(D6,'PHA List'!$A$2:$B$3141,2,FALSE)) -> Antigo Housing Authority | K7: =IF(ISNA(MATCH('Global Inputs'!$D$6,' '!$A$3:$A$8000,0)),9999,MATCH('Global Inputs'!$D$6,' '!$A$3:$A$8000,0)) -> 7345 | L7: is the first property for this PHA
A8: Number of Properties | B8: ? | D8: ='DNU Data'!B3 -> 1 | K8: =IF(K7=9999,1,0) -> 0
A9: =IF(D6<>K5,"Click on 'Populate Data' ►","") ->  | G9: =IF('DNU Data'!B3=0,"FATAL ERROR: NO PHA PROPERTY DATA",IF('DNU Data'!B3>40,"Note: Due to the size of this PHA, the 'Populate Data' routine will take a few minutes to perform","")) -> 
A10: Enter the following inputs, which will be applied to all projects in the PHA's inventory. Each global input can be modified for individual projects on the Inventory Overview sheet
A11: First Mortgage Financing Terms
A12: Interest Rate | B12: ? | D12: 0.035 | E12: annual rate
A13: Amortization Term | D13: 40 | E13: years
A14: MIP or Other Credit Enhancement | B14: ? | D14: 0.0035 | E14: per year
A15: Debt Service Coverage Ratio | B15: ? | D15: 1.25
A17: Type of Rental Assistance Contract
A18: PBRA or PBVs? | D18: PBRA | K18: PBRA | L18: PBVs
A20: Initial Operating Expense Assumption
A21: Operating Expenses | B21: ? | D21: 95% of Formula Expenses | F21: =IF(D21=L21,"►►►","") ->  | G21: 0 | H21: per unit per year | K21: No global input | L21: Use my market estimate | M21: 95% of Formula Expenses | N21: M2M Comparables

Sheet Inventory Overview
D1: WI085000002 | G1: WI065000013 | J1: WI065000014
D2: 1 | E2: 1 | G2: 1 | H2: 1 | M2: 1
A3: =+Instructions!$A$1 -> RAD Inventory Assessment Tool for PHAs
A5: 0
A6: ="Inventory Overview for "&'Global Inputs'!D7 -> Inventory Overview for Antigo Housing Authority
A8: PIC Development Number | D8: =+D$1 -> WI085000002 | G8: =+G$1 -> WI065000013 | J8: =+J$1 -> WI065000014
A9: Project Name | D9: =+'DNU Data'!D11 -> PARK VIEW MANOR | G9: =+'DNU Data'!G11 -> 1509/1511 Cass Street | J9: =+'DNU Data'!J11 -> 1513/1515 Cass Street
A11: Section One: Income and Expenses
A12: Total Units | D12: =E58 -> 83 | G12: =H58 -> 2 | J12: =K58 -> 2
A13: Weighted Avg # Bedrooms | D13: =IFERROR(SUMPRODUCT(E59:E65,$O59:$O65)/E58,0) -> 1 | E13: =D13 -> 1 | G13: =IFERROR(SUMPRODUCT(H59:H65,$O59:$O65)/H58,0) -> 2 | H13: =G13 -> 2 | J13: =IFERROR(SUMPRODUCT(K59:K65,$O59:$O65)/K58,0) -> 2 | K13: =J13 -> 2
A15: RAD Contract Rent (PUPM) | B15: ? | D15: =D125 -> 427.0389675 | G15: =G125 -> 0 | J15: =J125 -> 43.5
B16: ? | D16: =IFERROR(IF(D88<D77,"Rent capped. See Sec. 3",""),"") ->  | G16: =IFERROR(IF(G88<G77,"Rent capped. See Sec. 3.",""),"") ->  | J16: =IFERROR(IF(J88<J77,"Rent capped. See Sec. 3",""),"") -> 
A17: Income and Expenses | E17: PUPA | G17: Project | H17: PUPA | J17: Project | K17: PUPA | N17: PHA's Standards
A18: Gross Potential Rents | B18: ? | D18: =+E18*D$12 -> 425330.8117 | E18: =+D15*12 -> 5124.467611 | G18: =+H18*G$12 -> 0 | H18: =+G15*12 -> 0 | J18: =+K18*J$12 -> 1044 | K18: =+J15*12 -> 522
A19: Vacancy Loss | B19: ? | D19: =ROUND(D$12*E19,0) -> -21267 | E19: =-$N19*E18 -> -256.2233805 | G19: =ROUND(G$12*H19,0) -> 0 | H19: =-$N19*H18 -> 0 | J19: =ROUND(J$12*K19,0) -> -52 | K19: =-$N19*K18 -> -26.1 | N19: 0.05 | O19: of GPR
A20: Bad Debt Loss | B20: ? | D20: =ROUND(D$12*E20,0) -> -8507 | E20: =-$N20*E18 -> -102.4893522 | G20: =ROUND(G$12*H20,0) -> 0 | H20: =-$N20*H18 -> 0 | J20: =ROUND(J$12*K20,0) -> -21 | K20: =-$N20*K18 -> -10.44 | N20: 0.02 | O20: of GPR
A21: Other Income | B21: ? | D21: =+E21*D$12 -> 9960 | E21: =$N21 -> 120 | G21: =+H21*G$12 -> 240 | H21: =$N21 -> 120 | J21: =+K21*J$12 -> 240 | K21: =$N21 -> 120 | N21: 120 | O21: PUPA
A23: Effective Gross Income | D23: =SUM(D18:D22) -> 405516.8117 | E23: =IF(D$12=0,0,D23/D$12) -> 4885.744719 | G23: =SUM(G18:G22) -> 240 | H23: =IF(G$12=0,0,G23/G$12) -> 120 | J23: =SUM(J18:J22) -> 1211 | K23: =IF(J$12=0,0,J23/J$12) -> 605.5
A25: Operating Expenses | B25: ? | D25: =+E25*D$12 -> 339147.2283 | E25: =D136 -> 4086.111184 | G25: =+H25*G$12 -> 0 | H25: =G136 -> 0 | J25: =+K25*J$12 -> 0 | K25: =J136 -> 0
A26: Replacement Reserve | B26: ? | D26: =+E26*D$12 -> 41500 | E26: =$N26 -> 500 | G26: =+H26*G$12 -> 1000 | H26: =$N26 -> 500 | J26: =+K26*J$12 -> 1000 | K26: =$N26 -> 500 | N26: 500 | O26: PUPA
N27: The PHA can enter standard percentages / amounts above to apply to all projects.
A28: Net Operating Income | D28: =D23-SUM(D24:D27) -> 24869.58338 | E28: =IF(D$12=0,0,D28/D$12) -> 299.6335347 | G28: =G23-SUM(G24:G27) -> -760 | H28: =IF(G$12=0,0,G28/G$12) -> -380 | J28: =J23-SUM(J24:J27) -> 211 | K28: =IF(J$12=0,0,J28/J$12) -> 105.5
H29: =IF(G$12=0,0,IF(G11=0,$N26,(G11-G66)/20/G$12)) -> 500 | K29: =IF(J$12=0,0,IF(J11=0,$N26,(J11-J66)/20/J$12)) -> 500
A30: Supportable Debt Service | B30: ? | D30: =IF(OR(D52=0,E25=0),0,MAX(0,ROUND(D28/D52,0))) -> 19896 | E30: =IF(D$12=0,0,D30/D$12) -> 239.7108434 | G30: =IF(OR(G52=0,H25=0),0,MAX(0,ROUND(G28/G52,0))) -> 0 | H30: =IF(G$12=0,0,G30/G$12) -> 0 | J30: =IF(OR(J52=0,K25=0),0,MAX(0,ROUND(J28/J52,0))) -> 0 | K30: =IF(J$12=0,0,J30/J$12) -> 0
A32: Cash Flow | D32: =+D28-D30 -> 4973.583383 | E32: =IF(D$12=0,0,D32/D$12) -> 59.92269136 | G32: =+G28-G30 -> -760 | H32: =IF(G$12=0,0,G32/G$12) -> -380 | J32: =+J28-J30 -> 211 | K32: =IF(J$12=0,0,J32/J$12) -> 105.5
D35: Total | E35: Per Unit | G35: Total | H35: Per Unit | J35: Total | K35: Per Unit
A36: Maximum Supportable First Mortgage | B36: ? | D36: =+D53 -> 398000 | E36: =IF(D$12=0,0,D36/D$12) -> 4795.180723 | G36: =+G53 -> 0 | H36: =IF(G$12=0,0,G36/G$12) -> 0 | J36: =+J53 -> 0 | K36: =IF(J$12=0,0,J36/J$12) -> 0
D37: =IF(E25=0,"Operating expenses needed","") ->  | G37: =IF(H25=0,"Operating expenses needed","") -> Operating expenses needed | J37: =IF(K25=0,"Operating expenses needed","") -> Operating expenses needed
A38: 20 Year Replacement Reserve | D38: =D26*20 -> 830000 | E38: =E26*20 -> 10000 | G38: =G26*20 -> 20000 | H38: =H26*20 -> 10000 | J38: =J26*20 -> 20000 | K38: =K26*20 -> 10000
D43: SECTION TWO
A44: Conversion Type, Mortgage Terms, Unit Counts
D45: This Property | E45: Global Input | G45: This Property | H45: Global Input | J45: This Property | K45: Global Input
A46: Type of Rental Assistance Contract | B46: ? | D46: PBRA | E46: =+'Global Inputs'!$D$18 -> PBRA | G46: =H46 -> PBRA | H46: =+'Global Inputs'!$D$18 -> PBRA | J46: =K46 -> PBRA | K46: =+'Global Inputs'!$D$18 -> PBRA | P46: PBRA | Q46: PBVs
A48: First Mortgage Key Business Terms | D48: This Property | E48: Global Input | G48: This Property | H48: Global Input | J48: This Property | K48: Global Input
A49: Interest Rate | D49: =E49 -> 0.035 | E49: =+'Global Inputs'!$D$12 -> 0.035 | G49: =H49 -> 0.035 | H49: =+'Global Inputs'!$D$12 -> 0.035 | J49: =K49 -> 0.035 | K49: =+'Global Inputs'!$D$12 -> 0.035
A50: Amortization Term (years) | D50: =E50 -> 40 | E50: =+'Global Inputs'!$D$13 -> 40 | G50: =H50 -> 40 | H50: =+'Global Inputs'!$D$13 -> 40 | J50: =K50 -> 40 | K50: =+'Global Inputs'!$D$13 -> 40
A51: MIP / other credit enhancement | D51: =E51 -> 0.0035 | E51: =+'Global Inputs'!$D$14 -> 0.0035 | G51: =H51 -> 0.0035 | H51: =+'Global Inputs'!$D$14 -> 0.0035 | J51: =K51 -> 0.0035 | K51: =+'Global Inputs'!$D$14 -> 0.0035
A52: DSCR | D52: =E52 -> 1.25 | E52: =+'Global Inputs'!$D$15 -> 1.25 | G52: =H52 -> 1.25 | H52: =+'Global Inputs'!$D$15 -> 1.25 | J52: =K52 -> 1.25 | K52: =+'Global Inputs'!$D$15 -> 1.25
A53: Supportable Mortgage Loan Amount | B53: ? | D53: =IF(D55=0,0,ROUNDDOWN(D30/D55,-2)) -> 398000 | E53: =IF(E55=0,0,ROUNDDOWN(D30/E55,-2)) -> 398000 | G53: =IF(G55=0,0,ROUNDDOWN(G30/G55,-2)) -> 0 | H53: =IF(H55=0,0,ROUNDDOWN(G30/H55,-2)) -> 0 | J53: =IF(J55=0,0,ROUNDDOWN(J30/J55,-2)) -> 0 | K53: =IF(K55=0,0,ROUNDDOWN(J30/K55,-2)) -> 0
A54: P+I Factor | B54: ? | D54: =IF(ISERROR(-PMT(D49/12,D50*12,1)*12),0,-PMT(D49/12,D50*12,1)*12) -> 0.04648691529 | E54: =IF(ISERROR(-PMT(E49/12,E50*12,1)*12),0,-PMT(E49/12,E50*12,1)*12) -> 0.04648691529 | G54: =IF(ISERROR(-PMT(G49/12,G50*12,1)*12),0,-PMT(G49/12,G50*12,1)*12) -> 0.04648691529 | H54: =IF(ISERROR(-PMT(H49/12,H50*12,1)*12),0,-PMT(H49/12,H50*12,1)*12) -> 0.04648691529 | J54: =IF(ISERROR(-PMT(J49/12,J50*12,1)*12),0,-PMT(J49/12,J50*12,1)*12) -> 0.04648691529 | K54: =IF(ISERROR(-PMT(K49/12,K50*12,1)*12),0,-PMT(K49/12,K50*12,1)*12) -> 0.04648691529
A55: P+I+MIP Factor | B55: ? | D55: =+D54+D51 -> 0.04998691529 | E55: =+E54+E51 -> 0.04998691529 | G55: =+G54+G51 -> 0.04998691529 | H55: =+H54+H51 -> 0.04998691529 | J55: =+J54+J51 -> 0.04998691529 | K55: =+K54+K51 -> 0.04998691529
A57: Unit Count | B57: ? | D57: PIC Data | E57: Proposed | G57: PIC Data | H57: Proposed | J57: PIC Data | K57: Proposed
A58: Total | D58: =SUM('DNU Data'!D19:D25) -> 83 | E58: =SUM(E59:E65) -> 83 | G58: =SUM(G59:G65) -> 2 | H58: =SUM(H59:H65) -> 2 | J58: =SUM(J59:J65) -> 2 | K58: =SUM(K59:K65) -> 2
A59: 0 Bedroom | D59: ='DNU Data'!D19 -> 0 | E59: =D59 -> 0 | G59: ='DNU Data'!G19 -> 0 | H59: =G59 -> 0 | J59: ='DNU Data'!J19 -> 0 | K59: =J59 -> 0 | O59: 0 | P59: 0
A60: 1 Bedroom | D60: ='DNU Data'!D20 -> 83 | E60: =D60 -> 83 | G60: ='DNU Data'!G20 -> 0 | H60: 0 | J60: ='DNU Data'!J20 -> 0 | K60: 0 | O60: 1 | P60: 1
A61: 2 Bedroom | D61: ='DNU Data'!D21 -> 0 | E61: 0 | G61: ='DNU Data'!G21 -> 2 | H61: 2 | J61: ='DNU Data'!J21 -> 2 | K61: 2 | O61: 2 | P61: 2
A62: 3 Bedroom | D62: ='DNU Data'!D22 -> 0 | E62: 0 | G62: ='DNU Data'!G22 -> 0 | H62: 0 | J62: ='DNU Data'!J22 -> 0 | K62: 0 | O62: 3 | P62: 3
A63: 4 Bedroom | D63: ='DNU Data'!D23 -> 0 | E63: 0 | G63: ='DNU Data'!G23 -> 0 | H63: 0 | J63: ='DNU Data'!J23 -> 0 | K63: 0 | O63: 4 | P63: 4
A64: 5 Bedroom | D64: ='DNU Data'!D24 -> 0 | E64: 0 | G64: ='DNU Data'!G24 -> 0 | H64: 0 | J64: ='DNU Data'!J24 -> 0 | K64: 0 | O64: 5 | P64: 5
A65: 6 Bedroom | D65: ='DNU Data'!D25 -> 0 | E65: 0 | G65: ='DNU Data'!G25 -> 0 | H65: 0 | J65: ='DNU Data'!J25 -> 0 | K65: 0 | O65: 6 | P65: 6
D68: SECTION THREE
A69: Contract Rents and Rent Caps
A70: Detail of Current Funding | B70: ? | D70: HUD's Calc | E70: Revision | G70: HUD's Calc | H70: Revision | J70: HUD's Calc | K70: Revision
A71: Operating Fund | D71: ='DNU Data'!D13 -> 1052.237022 | E71: =D71 -> 1052.237022 | G71: ='DNU Data'!G13 -> 0 | H71: =G71 -> 0 | J71: ='DNU Data'!J13 -> 0 | K71: =J71 -> 0
A72: Capital Fund | D72: ='DNU Data'!D14 -> 882.2705882 | E72: =D72 -> 882.2705882 | G72: ='DNU Data'!G14 -> 0 | H72: 0 | J72: ='DNU Data'!J14 -> 522 | K72: 522
A73: Tenant Payments | D73: ='DNU Data'!D15 -> 3189.96 | E73: 3189.96 | G73: ='DNU Data'!G15 -> 0 | H73: 0 | J73: ='DNU Data'!J15 -> 0 | K73: 0
A74: Total Current Funding | D74: =SUM(D71:D73) -> 5124.467611 | E74: =SUM(E71:E73) -> 5124.467611 | G74: =SUM(G71:G73) -> 0 | H74: =SUM(H71:H73) -> 0 | J74: =SUM(J71:J73) -> 522 | K74: =SUM(K71:K73) -> 522
A76: RAD Rent Caps | D76: PUPM | G76: PUPM | J76: PUPM
A77: (A) Current Funding | D77: =E74/12 -> 427.0389675 | G77: =H74/12 -> 0 | J77: =K74/12 -> 43.5
A78: (B) Reasonable Rent | B78: ? | D78: =D90 -> 451.98 | G78: =G90 -> 509.5 | J78: =J90 -> 509.5
A79: (C) 110% of FMRs - UAs (PBVs) | D79: =110%*E$108-D$99 -> 534.6 | G79: =110%*H$108-G$99 -> 620 | J79: =110%*K$108-J$99 -> 620
A80: RAD Contract Rent if PBVs | B80: ? | D80: =MIN(D77,D78,D79) -> 427.0389675 | G80: =MIN(G77,G78,G79) -> 0 | J80: =MIN(J77,J78,J79) -> 43.5
A82: (A) Current Funding | D82: =E74/12 -> 427.0389675 | G82: =H74/12 -> 0 | J82: =K74/12 -> 43.5
A83: (B) 120% of FMRs - UAs (PBRA) | D83: =120%*E$108-D$99 -> 583.2 | G83: =120%*H$108-G$99 -> 685 | J83: =120%*K$108-J$99 -> 685
A84: (C) Comparable Market Rent | D84: =D90 -> 451.98 | G84: =G90 -> 509.5 | J84: =J90 -> 509.5
A85: (D) 150% of FMRs - UAs (PBRA) | D85: =150%*E$108-D$99 -> 729 | G85: =150%*H$108-G$99 -> 880 | J85: =150%*K$108-J$99 -> 880
A86: RAD Contract Rent if PBRA | B86: ? | D86: =MAX(MIN(D82,D83),MIN(D82,D84,D85)) -> 427.0389675 | G86: =MAX(MIN(G82,G83),MIN(G82,G84,G85)) -> 0 | J86: =MAX(MIN(J82,J83),MIN(J82,J84,J85)) -> 43.5
A88: Indicated by your PBRA/PBV selection | D88: =IF(D46="PBVs",D80,D86) -> 427.0389675 | G88: =IF(G46="PBV",G80,G86) -> 0 | J88: =IF(J46="PBV",J80,J86) -> 43.5
A90: Reasonable Rents | B90: ? | D90: =IFERROR(SUMPRODUCT(D91:D97,E59:E65)/E58,0) -> 451.98 | G90: =IFERROR(SUMPRODUCT(G91:G97,H59:H65)/H58,0) -> 509.5 | J90: =IFERROR(SUMPRODUCT(J91:J97,K59:K65)/K58,0) -> 509.5 | N90: 0.93
A91: 0 Bedroom | D91: =IF(E59=0,"-",D141*$N$90-D100) -> - | G91: =IF(H59=0,"-",G141*$N$90-G100) -> - | J91: =IF(K59=0,"-",J141*$N$90-J100) -> - | O91: of FMRs, minus utility allowance
A92: 1 Bedroom | D92: 451.98 | G92: - | J92: -
A93: 2 Bedroom | D93: - | G93: 509.5 | J93: 509.5
A94: 3 Bedroom | D94: - | G94: - | J94: -
A95: 4 Bedroom | D95: - | G95: - | J95: -
A96: 5 Bedroom | D96: - | G96: - | J96: -
A97: 6 Bedroom | D97: - | G97: - | J97: -
A99: Utility Allowances | B99: ? | D99: =IFERROR(SUMPRODUCT(D100:D106,E59:E65)/E58,0) -> 0 | G99: =IFERROR(SUMPRODUCT(G100:G106,H59:H65)/H58,0) -> 95 | J99: =IFERROR(SUMPRODUCT(J100:J106,K59:K65)/K58,0) -> 95
A100: 0 Bedroom | D100: =IF(E59=0,"-",'DNU Data'!D$41) -> - | G100: =IF(H59=0,"-",'DNU Data'!G$41) -> - | J100: =IF(K59=0,"-",'DNU Data'!J$41) -> -
A101: 1 Bedroom | D101: =IF(E60=0,"-",'DNU Data'!D$41) -> 0 | G101: =IF(H60=0,"-",'DNU Data'!G$41) -> - | J101: =IF(K60=0,"-",'DNU Data'!J$41) -> -
A102: 2 Bedroom | D102: =IF(E61=0,"-",'DNU Data'!D$41) -> - | G102: =IF(H61=0,"-",'DNU Data'!G$41) -> 95 | J102: =IF(K61=0,"-",'DNU Data'!J$41) -> 95
A103: 3 Bedroom | D103: =IF(E62=0,"-",'DNU Data'!D$41) -> - | G103: =IF(H62=0,"-",'DNU Data'!G$41) -> - | J103: =IF(K62=0,"-",'DNU Data'!J$41) -> -
A104: 4 Bedroom | D104: =IF(E63=0,"-",'DNU Data'!D$41) -> - | G104: =IF(H63=0,"-",'DNU Data'!G$41) -> - | J104: =IF(K63=0,"-",'DNU Data'!J$41) -> -
A105: 5 Bedroom | D105: =IF(E64=0,"-",'DNU Data'!D$41) -> - | G105: =IF(H64=0,"-",'DNU Data'!G$41) -> - | J105: =IF(K64=0,"-",'DNU Data'!J$41) -> -
A106: 6 Bedroom | D106: =IF(E65=0,"-",'DNU Data'!D$41) -> - | G106: =IF(H65=0,"-",'DNU Data'!G$41) -> - | J106: =IF(K65=0,"-",'DNU Data'!J$41) -> -
A108: Fair Market Rents | B108: ? | D108: =IFERROR(SUMPRODUCT('DNU Data'!D28:D34,'DNU Data'!D19:D25)/D58,0) -> 486 | E108: =IFERROR(SUMPRODUCT(E109:E115,E59:E65)/E58,0) -> 486 | G108: =IFERROR(SUMPRODUCT(G109:G115,G59:G65)/G58,0) -> 650 | H108: =IFERROR(SUMPRODUCT(H109:H115,H59:H65)/H58,0) -> 650 | J108: =IFERROR(SUMPRODUCT(J109:J115,J59:J65)/J58,0) -> 650 | K108: =IFERROR(SUMPRODUCT(K109:K115,K59:K65)/K58,0) -> 650
A109: 0 Bedroom | D109: ='DNU Data'!D28 -> 485 | E109: =D109 -> 485 | G109: ='DNU Data'!G28 -> 510 | H109: =G109 -> 510 | J109: ='DNU Data'!J28 -> 510 | K109: =J109 -> 510
A110: 1 Bedroom | D110: ='DNU Data'!D29 -> 486 | E110: =D110 -> 486 | G110: ='DNU Data'!G29 -> 524 | H110: 524 | J110: ='DNU Data'!J29 -> 524 | K110: 524
A111: 2 Bedroom | D111: ='DNU Data'!D30 -> 584 | E111: 584 | G111: ='DNU Data'!G30 -> 650 | H111: 650 | J111: ='DNU Data'!J30 -> 650 | K111: 650
A112: 3 Bedroom | D112: ='DNU Data'!D31 -> 770 | E112: 770 | G112: ='DNU Data'!G31 -> 937 | H112: 937 | J112: ='DNU Data'!J31 -> 937 | K112: 937
A113: 4 Bedroom | D113: ='DNU Data'!D32 -> 840 | E113: 840 | G113: ='DNU Data'!G32 -> 964 | H113: 964 | J113: ='DNU Data'!J32 -> 964 | K113: 964
A114: 5 Bedroom | D114: ='DNU Data'!D33 -> 966 | E114: 966 | G114: ='DNU Data'!G33 -> 1108.6 | H114: 1108.6 | J114: ='DNU Data'!J33 -> 1108.6 | K114: 1108.6
A115: 6 Bedroom | D115: ='DNU Data'!D34 -> 1092 | E115: 1092 | G115: ='DNU Data'!G34 -> 1253.2 | H115: 1253.2 | J115: ='DNU Data'!J34 -> 1253.2 | K115: 1253.2
A117: Contract Rent Schedule | D117: Bedroom Adjusted Rents | G117: Bedroom Adjusted Rents | J117: Bedroom Adjusted Rents
A118: 0 Bedroom | D118: =E159 -> 0 | G118: =H159 -> 0 | J118: =K159 -> 0
A119: 1 Bedroom | D119: =E160 -> 427.0389675 | G119: =H160 -> 0 | J119: =K160 -> 0
A120: 2 Bedroom | D120: 0 | G120: 0 | J120: 43.5
A121: 3 Bedroom | D121: 0 | G121: 0 | J121: 0
A122: 4 Bedroom | D122: 0 | G122: 0 | J122: 0
A123: 5 Bedroom | D123: 0 | G123: 0 | J123: 0
A124: 6 Bedroom | D124: 0 | G124: 0 | J124: 0
A125: Weighted Average | D125: =IFERROR(SUMPRODUCT(D118:D124,E59:E65)/E58,0) -> 427.0389675 | G125: =IFERROR(SUMPRODUCT(G118:G124,H59:H65)/H58,0) -> 0 | J125: =IFERROR(SUMPRODUCT(J118:J124,K59:K65)/K58,0) -> 43.5
A127: PRE-POPULATED DATA FROM HUD'S DATABASE (AFTER VALIDATION CHECKING AND ANY CHANGES BY THE USER)
A129: Operating Expense Pre-Pop
A130: ='Global Inputs'!K21 -> No global input | D130: 0 | G130: 0 | J130: 0
A131: ='Global Inputs'!L21 -> Use my market estimate | D131: ='Global Inputs'!$G21 -> 0 | G131: ='Global Inputs'!$G21 -> 0 | J131: ='Global Inputs'!$G21 -> 0
A132: ='Global Inputs'!M21 -> 95% of Formula Expenses | B132: ? | D132: ='DNU Data'!D38:E38 -> 4086.111184 | E132: =D132 -> 4086.111184 | G132: ='DNU Data'!G38:H38 -> 0 | H132: =G132 -> 0 | J132: ='DNU Data'!J38:K38 -> 0 | K132: =J132 -> 0
A133: ='Global Inputs'!N21 -> M2M Comparables | D133: ='DNU Data'!D39:E39 -> 4920.384615 | G133: ='DNU Data'!G39:H39 -> 4920.384615 | J133: ='DNU Data'!J39:K39 -> 4920.384615
A136: Operating Expense Pre-Pop | B136: ? | D136: =IF($N136=$A130,D130,IF($N136=$A131,D131,IF($N136=$A132,D132,IF($N136=$A133,D133,0)))) -> 4086.111184 | G136: =IF($N136=$A130,G130,IF($N136=$A131,G131,IF($N136=$A132,G132,IF($N136=$A133,G133,0)))) -> 0 | J136: =IF($N136=$A130,J130,IF($N136=$A131,J131,IF($N136=$A132,J132,IF($N136=$A133,J133,0)))) -> 0 | N136: ='Global Inputs'!D21 -> 95% of Formula Expenses
A138: Utility Allowances (wtd average) | B138: ? | D138: ='DNU Data'!D41:E41 -> 0 | G138: ='DNU Data'!G41:H41 -> 95 | J138: ='DNU Data'!J41:K41 -> 95
A140: Fair Market Rents | D140: =IF(D$12=0,0,SUMPRODUCT(E$59:E$65,D141:D147)/D$12) -> 486 | G140: =IF(G$12=0,0,SUMPRODUCT(H$59:H$65,G141:G147)/G$12) -> 650 | J140: =IF(J$12=0,0,SUMPRODUCT(K$59:K$65,J141:J147)/J$12) -> 650
A141: 0 Bedroom | D141: =E109 -> 485 | G141: =H109 -> 510 | J141: =K109 -> 510
A142: 1 Bedroom | D142: =E110 -> 486 | G142: =H110 -> 524 | J142: =K110 -> 524
A143: 2 Bedroom | D143: 584 | G143: 650 | J143: 650
A144: 3 Bedroom | D144: 770 | G144: 937 | J144: 937
A145: 4 Bedroom | D145: 840 | G145: 964 | J145: 964
A146: 5 Bedroom | D146: 966 | G146: 1108.6 | J146: 1108.6
A147: 6 Bedroom | D147: 1092 | G147: 1253.2 | J147: 1253.2
A149: Ration of FMR:2-BR FMR | D149: FMR adj | E149: 2br equiv | G149: FMR adj | H149: 2br equiv | J149: FMR adj | K149: 2br equiv
A150: 0 Bedroom | D150: =IFERROR(E109/E$111,0) -> 0.8304794521 | E150: =D150*'DNU Data'!D19 -> 0 | G150: =IFERROR(H109/H$111,0) -> 0.7846153846 | H150: =G150*G59 -> 0 | J150: =IFERROR(K109/K$111,0) -> 0.7846153846 | K150: =J150*J59 -> 0
A151: 1 Bedroom | D151: 0.8321917808 | E151: =D151*'DNU Data'!D20 -> 69.07191781 | G151: 0.8061538462 | H151: 0 | J151: 0.8061538462 | K151: 0
A152: 2 Bedroom | D152: 1 | E152: =D152*'DNU Data'!D21 -> 0 | G152: 1 | H152: 2 | J152: 1 | K152: 2
A153: 3 Bedroom | D153: 1.318493151 | E153: =D153*'DNU Data'!D22 -> 0 | G153: 1.441538462 | H153: 0 | J153: 1.441538462 | K153: 0
A154: 4 Bedroom | D154: 1.438356164 | E154: =D154*'DNU Data'!D23 -> 0 | G154: 1.483076923 | H154: 0 | J154: 1.483076923 | K154: 0
A155: 5 Bedroom | D155: 1.654109589 | E155: =D155*'DNU Data'!D24 -> 0 | G155: 1.705538462 | H155: 0 | J155: 1.705538462 | K155: 0
A156: 6 Bedroom | D156: 1.869863014 | E156: =D156*'DNU Data'!D25 -> 0 | G156: 1.928 | H156: 0 | J156: 1.928 | K156: 0
A158: Contract Rent Schedule | D158: Adj Rents | E158: Actual Rent | G158: Adj Rents | H158: Actual Rent | J158: Adj Rents | K158: Actual Rent
A159: 0 Bedroom | D159: =IFERROR(D$161*D150,0) -> 426.1602865 | E159: =IF(E59=0,0,D159) -> 0 | G159: =IFERROR(G$161*G150,0) -> 0 | H159: =IF(H59=0,0,G159) -> 0 | J159: =IFERROR(J$161*J150,0) -> 34.13076923 | K159: =IF(K59=0,0,J159) -> 0
A160: 1 Bedroom | D160: =IFERROR(D$161*D151,0) -> 427.0389675 | E160: 427.0389675 | G160: =IFERROR(G$161*G151,0) -> 0 | H160: 0 | J160: =IFERROR(J$161*J151,0) -> 35.06769231 | K160: 0
A161: 2 Bedroom | D161: =IFERROR(D167/SUM(E150:E156),0) -> 513.1497059 | E161: 0 | G161: =IFERROR(G167/SUM(H150:H156),0) -> 0 | H161: 0 | J161: =IFERROR(J167/SUM(K150:K156),0) -> 43.5 | K161: 43.5
A162: 3 Bedroom | D162: =IFERROR(D$161*D153,0) -> 676.5843725 | E162: 0 | G162: =IFERROR(G$161*G153,0) -> 0 | H162: 0 | J162: =IFERROR(J$161*J153,0) -> 62.70692308 | K162: 0
A163: 4 Bedroom | D163: =IFERROR(D$161*D154,0) -> 738.0920427 | E163: 0 | G163: =IFERROR(G$161*G154,0) -> 0 | H163: 0 | J163: =IFERROR(J$161*J154,0) -> 64.51384615 | K163: 0
A164: 5 Bedroom | D164: =IFERROR(D$161*D155,0) -> 848.8058491 | E164: 0 | G164: =IFERROR(G$161*G155,0) -> 0 | H164: 0 | J164: =IFERROR(J$161*J155,0) -> 74.19092308 | K164: 0
A165: 6 Bedroom | D165: =IFERROR(D$161*D156,0) -> 959.5196555 | E165: 0 | G165: =IFERROR(G$161*G156,0) -> 0 | H165: 0 | J165: =IFERROR(J$161*J156,0) -> 83.868 | K165: 0
A166: Weighted Average | D166: =IFERROR(SUMPRODUCT(D159:D165,'DNU Data'!D19:D25)/D58,0) -> 427.0389675 | E166: =IFERROR(SUMPRODUCT(E159:E165,E59:E65)/E58,0) -> 427.0389675 | G166: =IFERROR(SUMPRODUCT(G159:G165,G59:G65)/G58,0) -> 0 | H166: =IFERROR(SUMPRODUCT(H159:H165,H59:H65)/H58,0) -> 0 | J166: =IFERROR(SUMPRODUCT(J159:J165,J59:J65)/J58,0) -> 43.5 | K166: =IFERROR(SUMPRODUCT(K159:K165,K59:K65)/K58,0) -> 43.5
A167: Initial GPR Montlhy | D167: =D88*D58 -> 35444.23431 | E167: =SUMPRODUCT(E159:E165,E59:E65) -> 35444.23431 | G167: =G88*G58 -> 0 | H167: =SUMPRODUCT(H159:H165,H59:H65) -> 0 | J167: =J88*J58 -> 87 | K167: =SUMPRODUCT(K159:K165,K59:K65) -> 87
D168: SECTION FOUR
A169: Build Out Sources & Uses Budget
A170: SOURCES | D170: =D9 -> PARK VIEW MANOR | G170: =G9 -> 1509/1511 Cass Street | J170: =J9 -> 1513/1515 Cass Street
A171: New First Mortgage Loan | B171: ? | D171: =D36 -> 398000 | G171: =G36 -> 0 | J171: =J36 -> 0
A172: Operating Fund Reserves | B172: ? | D172: 0 | G172: 0 | J172: 0
A173: Capital Fund | B173: ? | D173: 0 | G173: 0 | J173: 0
A174: Replacement Housing Factor funds | B174: ? | D174: 0 | G174: 0 | J174: 0
A175: HOME/CDBG | B175: ? | D175: 0 | G175: 0 | J175: 0
A176: FHLB Affordable Housing Program | B176: ? | D176: 0 | G176: 0 | J176: 0
A177: Green Energy Programs | B177: ? | D177: 0 | G177: 0 | J177: 0
A178: Local housing trust funds | D178: 0 | G178: 0 | J178: 0
A179: Other Subordinated Debt | D179: 0 | G179: 0 | J179: 0
A180: LIHTC (4% w/ Bonds or 9%) | B180: ? | D180: 0 | G180: 0 | J180: 0
A181: Historic Rehabilitation Tax Credits | B181: ? | D181: 0 | G181: 0 | J181: 0
A182: State Tax Credits | B182: ? | D182: 0 | G182: 0 | J182: 0
A183: Seller Take-Back Financing | B183: ? | D183: 0 | G183: 0 | J183: 0
A184: Grants | D184: 0 | G184: 0 | J184: 0
A185: Other | D185: 0 | G185: 0 | J185: 0
A186: Other | D186: 0 | G186: 0 | J186: 0
A187: Other | D187: 0 | G187: 0 | J187: 0
A188: Total | D188: =SUM(D171:E187) -> 398000 | G188: =SUM(G171:H187) -> 0 | J188: =SUM(J171:K187) -> 0
A190: USES | B190: ?
A191: Acquisition | B191: ? | D191: 0 | G191: 0 | J191: 0
A192: Construction Costs | B192: ? | D192: 0 | G192: 0 | J192: 0
A193: Relocation Costs | B193: ? | D193: 0 | G193: 0 | J193: 0
A194: Professional Fees | B194: ? | D194: 0 | G194: 0 | J194: 0
A195: Loan Fees and Costs | B195: ? | D195: 0 | G195: 0 | J195: 0
A196: Reserves | B196: ? | D196: 0 | G196: 0 | J196: 0
A197: Developer Fee | B197: ? | D197: 0 | G197: 0 | J197: 0
A198: Payoff Outstanding Debt | B198: ? | D198: 0 | G198: 0 | J198: 0
A199: Total | D199: =SUM(D191:E198) -> 0 | G199: =SUM(G191:H198) -> 0 | J199: =SUM(J191:K198) -> 0
A201: Surplus/(Gap) | D201: =D188-D199 -> 398000 | G201: =G188-G199 -> 0 | J201: =J188-J199 -> 0
A203: LIHTC Estimator | B203: ?
A204: Once a user has input Development Uses above, the table below provides a short-hand estimate of how tax credits may help to fill a financing gap.
A205: It shows an estimate of the net LIHTC equity (i.e. net of LIHTC related transaction costs and fees) the project might attract based on simple assumptions.
A206: Users should adjust Sources and Uses to account for acquisition costs, increased operating reserve requirements, and developer fees that are common in LIHTC transactions (click on blue boxes for guidance).
A207: PHAs are strongly advised to perform a more detailed tax credit analysis and/or to consult with a tax credit professional.
D209: Net Equity Estimate | G209: Net Equity Estimate | J209: Net Equity Estimate
A210: 4% credit 130% census tract | B210: ? | D210: =D250 -> 0 | G210: =G250 -> 0 | J210: =J250 -> 0
A211: 4% credit (no basis boost) | D211: =E250 -> 0 | G211: =H250 -> 0 | J211: =K250 -> 0
A212: 9% credit 130% census tract | B212: ? | D212: =D274 -> 0 | G212: =G274 -> 0 | J212: =J274 -> 0
A213: 9% credit (no basis boost) | D213: =E274 -> 0 | G213: =H274 -> 0 | J213: =K274 -> 0
B215: ?
A216: Background Tax Credit Calculations (all editable)
A217: Eligible Basis Estimate
A218: Estimated Acquisition Basis | B218: ? | D218: =D191*0.75 -> 0 | G218: =G191*0.75 -> 0 | J218: =J191*0.75 -> 0
A220: Estimated Rehab/Construction Basis
A221: Total Uses | D221: =D199 -> 0 | G221: =G199 -> 0 | J221: =J199 -> 0
A222: Minus acquisition & debt payoff | D222: =D191+D198 -> 0 | G222: =G191 -> 0 | J222: =J191 -> 0
A223: Minus reserves | D223: =D196 -> 0 | G223: =G196 -> 0 | J223: =J196 -> 0
A224: Minus 2% for other non-basis costs | D224: =D221*0.02 -> 0 | G224: =G221*0.02 -> 0 | J224: =J221*0.02 -> 0
A225: Estimated Rehab/Construction Basis | D225: =MAX(0,D221-SUM(D222:E224)) -> 0 | G225: =MAX(0,G221-SUM(G222:H224)) -> 0 | J225: =MAX(0,J221-SUM(J222:K224)) -> 0
A227: Additional source from 4% equity
A228: Acquisition Credits
A229: Eligible Acquisition Basis (estimate): | D229: =D218 -> 0 | G229: =G218 -> 0 | J229: =J218 -> 0
A230: Credit Rate | B230: 0.032 | D230: =$B230 -> 0.032 | G230: =$B230 -> 0.032 | J230: =$B230 -> 0.032
A231: Acquisition Credits over 10 yrs | D231: =D229*D230*10 -> 0 | G231: =G229*G230*10 -> 0 | J231: =J229*J230*10 -> 0
A233: 4% Rehab Credits | D233: 130% Boost | E233: No Basis Boost | G233: 130% Boost | H233: No Basis Boost | J233: 130% Boost | K233: No Basis Boost
A234: Eligible Rehab Basis | D234: =D225 -> 0 | E234: =D225 -> 0 | G234: =G225 -> 0 | H234: =G225 -> 0 | J234: =J225 -> 0 | K234: =J225 -> 0
A235: Boost | B235: ? | D235: 1.3 | E235: 1 | G235: 1.3 | H235: 1 | J235: 1.3 | K235: 1
A236: Qualified Basis | D236: =D234*D235 -> 0 | E236: =E234*E235 -> 0 | G236: =G234*G235 -> 0 | H236: =H234*H235 -> 0 | J236: =J234*J235 -> 0 | K236: =K234*K235 -> 0
A237: Credit Rate | B237: 0.032 | D237: =$B$237 -> 0.032 | E237: =$B$237 -> 0.032 | G237: =$B$237 -> 0.032 | H237: =$B$237 -> 0.032 | J237: =$B$237 -> 0.032 | K237: =$B$237 -> 0.032
A238: Rehab Credits over 10 yrs | D238: =D236*D237*10 -> 0 | E238: =E236*E237*10 -> 0 | G238: =G236*G237*10 -> 0 | H238: =H236*H237*10 -> 0 | J238: =J236*J237*10 -> 0 | K238: =K236*K237*10 -> 0
A240: Total Acquisition & Rehab Credits | D240: =D231+D238 -> 0 | E240: =D231+E238 -> 0 | G240: =G231+G238 -> 0 | H240: =G231+H238 -> 0 | J240: =J231+J238 -> 0 | K240: =J231+K238 -> 0
A241: Estimated Price/Credit | B241: 0.85 | D241: =$B241 -> 0.85 | E241: =$B241 -> 0.85 | G241: =$B241 -> 0.85 | H241: =$B241 -> 0.85 | J241: =$B241 -> 0.85 | K241: =$B241 -> 0.85
... 34 more rows

Sheet DNU Data (hidden)
D1: WI085000002 | G1: WI065000013 | J1: WI065000014
A3: Global D8 | B3: =COUNTIF(' '!$A$3:$A$8000,'Global Inputs'!D6) -> 1
A4: Global K6 | B4: =ROW(' '!A3)-1 -> 2 | C4: is the row offset into the HUD data table
A5: Global K7 | B5: =IF(ISNA(MATCH('Global Inputs'!$D$6,' '!$A$3:$A$8000,0)),9999,MATCH('Global Inputs'!$D$6,' '!$A$3:$A$8000,0)) -> 7345
A6: Global E8 | B6: =IF(COUNTIF(' '!$A$3:$A$8000,'Global Inputs'!D6)=0,"FATAL ERROR: NO PHA PROPERTY DATA","") -> 
A11: Project Name | D11: =IF(ISERROR(VLOOKUP(D$1,' '!$B$3:$Z$7456,'DNU Data'!$N11,FALSE)),0,VLOOKUP(D$1,' '!$B$3:$Z$7456,'DNU Data'!$N11,FALSE)) -> PARK VIEW MANOR | E11: 0 | G11: =IF(ISERROR(VLOOKUP(G$1,' '!$B$3:$Z$7456,'DNU Data'!$N11,FALSE)),0,VLOOKUP(G$1,' '!$B$3:$Z$7456,'DNU Data'!$N11,FALSE)) -> 1509/1511 Cass Street | H11: 0 | J11: =IF(ISERROR(VLOOKUP(J$1,' '!$B$3:$Z$7456,'DNU Data'!$N11,FALSE)),0,VLOOKUP(J$1,' '!$B$3:$Z$7456,'DNU Data'!$N11,FALSE)) -> 1513/1515 Cass Street | K11: 0 | N11: 2
A13: Operating Fund | D13: =IF(ISERROR(VLOOKUP(D$1,' '!$B$3:$Z$7456,$N13,FALSE)),0,VLOOKUP(D$1,' '!$B$3:$Z$7456,$N13,FALSE)) -> 1052.237022 | G13: =IF(ISERROR(VLOOKUP(G$1,' '!$B$3:$Z$7456,$N13,FALSE)),0,VLOOKUP(G$1,' '!$B$3:$Z$7456,$N13,FALSE)) -> 0 | J13: =IF(ISERROR(VLOOKUP(J$1,' '!$B$3:$Z$7456,$N13,FALSE)),0,VLOOKUP(J$1,' '!$B$3:$Z$7456,$N13,FALSE)) -> 0 | N13: 5
A14: Capital Fund | D14: =IF(ISERROR(VLOOKUP(D$1,' '!$B$3:$Z$7456,$N14,FALSE)),0,VLOOKUP(D$1,' '!$B$3:$Z$7456,$N14,FALSE)) -> 882.2705882 | G14: =IF(ISERROR(VLOOKUP(G$1,' '!$B$3:$Z$7456,$N14,FALSE)),0,VLOOKUP(G$1,' '!$B$3:$Z$7456,$N14,FALSE)) -> 0 | J14: =IF(ISERROR(VLOOKUP(J$1,' '!$B$3:$Z$7456,$N14,FALSE)),0,VLOOKUP(J$1,' '!$B$3:$Z$7456,$N14,FALSE)) -> 522 | N14: 7
A15: Tenant Payments | D15: =IF(ISERROR(VLOOKUP(D$1,' '!$B$3:$Z$7456,$N15,FALSE)),0,VLOOKUP(D$1,' '!$B$3:$Z$7456,$N15,FALSE)) -> 3189.96 | G15: =IF(ISERROR(VLOOKUP(G$1,' '!$B$3:$Z$7456,$N15,FALSE)),0,VLOOKUP(G$1,' '!$B$3:$Z$7456,$N15,FALSE)) -> 0 | J15: =IF(ISERROR(VLOOKUP(J$1,' '!$B$3:$Z$7456,$N15,FALSE)),0,VLOOKUP(J$1,' '!$B$3:$Z$7456,$N15,FALSE)) -> 0 | N15: 6
A17: Unit Count
A18: Total
A19: 0 Bedroom | D19: =IF(ISERROR(VLOOKUP(D$1,' '!$B$3:$Z$7456,'DNU Data'!$N19,FALSE)),0,VLOOKUP(D$1,' '!$B$3:$Z$7456,'DNU Data'!$N19,FALSE)) -> 0 | G19: =IF(ISERROR(VLOOKUP(G$1,' '!$B$3:$Z$7456,'DNU Data'!$N19,FALSE)),0,VLOOKUP(G$1,' '!$B$3:$Z$7456,'DNU Data'!$N19,FALSE)) -> 0 | J19: =IF(ISERROR(VLOOKUP(J$1,' '!$B$3:$Z$7456,'DNU Data'!$N19,FALSE)),0,VLOOKUP(J$1,' '!$B$3:$Z$7456,'DNU Data'!$N19,FALSE)) -> 0 | N19: 12
A20: 1 Bedroom | D20: =IF(ISERROR(VLOOKUP(D$1,' '!$B$3:$Z$7456,'DNU Data'!$N20,FALSE)),0,VLOOKUP(D$1,' '!$B$3:$Z$7456,'DNU Data'!$N20,FALSE)) -> 83 | G20: =IF(ISERROR(VLOOKUP(G$1,' '!$B$3:$Z$7456,'DNU Data'!$N20,FALSE)),0,VLOOKUP(G$1,' '!$B$3:$Z$7456,'DNU Data'!$N20,FALSE)) -> 0 | J20: =IF(ISERROR(VLOOKUP(J$1,' '!$B$3:$Z$7456,'DNU Data'!$N20,FALSE)),0,VLOOKUP(J$1,' '!$B$3:$Z$7456,'DNU Data'!$N20,FALSE)) -> 0 | N20: =+N19+1 -> 13
A21: 2 Bedroom | D21: =IF(ISERROR(VLOOKUP(D$1,' '!$B$3:$Z$7456,'DNU Data'!$N21,FALSE)),0,VLOOKUP(D$1,' '!$B$3:$Z$7456,'DNU Data'!$N21,FALSE)) -> 0 | G21: =IF(ISERROR(VLOOKUP(G$1,' '!$B$3:$Z$7456,'DNU Data'!$N21,FALSE)),0,VLOOKUP(G$1,' '!$B$3:$Z$7456,'DNU Data'!$N21,FALSE)) -> 2 | J21: =IF(ISERROR(VLOOKUP(J$1,' '!$B$3:$Z$7456,'DNU Data'!$N21,FALSE)),0,VLOOKUP(J$1,' '!$B$3:$Z$7456,'DNU Data'!$N21,FALSE)) -> 2 | N21: 14
A22: 3 Bedroom | D22: =IF(ISERROR(VLOOKUP(D$1,' '!$B$3:$Z$7456,'DNU Data'!$N22,FALSE)),0,VLOOKUP(D$1,' '!$B$3:$Z$7456,'DNU Data'!$N22,FALSE)) -> 0 | G22: =IF(ISERROR(VLOOKUP(G$1,' '!$B$3:$Z$7456,'DNU Data'!$N22,FALSE)),0,VLOOKUP(G$1,' '!$B$3:$Z$7456,'DNU Data'!$N22,FALSE)) -> 0 | J22: =IF(ISERROR(VLOOKUP(J$1,' '!$B$3:$Z$7456,'DNU Data'!$N22,FALSE)),0,VLOOKUP(J$1,' '!$B$3:$Z$7456,'DNU Data'!$N22,FALSE)) -> 0 | N22: 15
A23: 4 Bedroom | D23: =IF(ISERROR(VLOOKUP(D$1,' '!$B$3:$Z$7456,'DNU Data'!$N23,FALSE)),0,VLOOKUP(D$1,' '!$B$3:$Z$7456,'DNU Data'!$N23,FALSE)) -> 0 | G23: =IF(ISERROR(VLOOKUP(G$1,' '!$B$3:$Z$7456,'DNU Data'!$N23,FALSE)),0,VLOOKUP(G$1,' '!$B$3:$Z$7456,'DNU Data'!$N23,FALSE)) -> 0 | J23: =IF(ISERROR(VLOOKUP(J$1,' '!$B$3:$Z$7456,'DNU Data'!$N23,FALSE)),0,VLOOKUP(J$1,' '!$B$3:$Z$7456,'DNU Data'!$N23,FALSE)) -> 0 | N23: 16
A24: 5 Bedroom | D24: =IF(ISERROR(VLOOKUP(D$1,' '!$B$3:$Z$7456,'DNU Data'!$N24,FALSE)),0,VLOOKUP(D$1,' '!$B$3:$Z$7456,'DNU Data'!$N24,FALSE)) -> 0 | G24: =IF(ISERROR(VLOOKUP(G$1,' '!$B$3:$Z$7456,'DNU Data'!$N24,FALSE)),0,VLOOKUP(G$1,' '!$B$3:$Z$7456,'DNU Data'!$N24,FALSE)) -> 0 | J24: =IF(ISERROR(VLOOKUP(J$1,' '!$B$3:$Z$7456,'DNU Data'!$N24,FALSE)),0,VLOOKUP(J$1,' '!$B$3:$Z$7456,'DNU Data'!$N24,FALSE)) -> 0 | N24: 17
A25: 6 Bedroom | D25: =IF(ISERROR(VLOOKUP(D$1,' '!$B$3:$Z$7456,'DNU Data'!$N25,FALSE)),0,VLOOKUP(D$1,' '!$B$3:$Z$7456,'DNU Data'!$N25,FALSE)) -> 0 | G25: =IF(ISERROR(VLOOKUP(G$1,' '!$B$3:$Z$7456,'DNU Data'!$N25,FALSE)),0,VLOOKUP(G$1,' '!$B$3:$Z$7456,'DNU Data'!$N25,FALSE)) -> 0 | J25: =IF(ISERROR(VLOOKUP(J$1,' '!$B$3:$Z$7456,'DNU Data'!$N25,FALSE)),0,VLOOKUP(J$1,' '!$B$3:$Z$7456,'DNU Data'!$N25,FALSE)) -> 0 | N25: 18
A27: Fair Market Rents
A28: 0 Bedroom | D28: =IF(ISERROR(VLOOKUP(D$1,' '!$B$3:$Z$7456,'DNU Data'!$N28,FALSE)),0,VLOOKUP(D$1,' '!$B$3:$Z$7456,'DNU Data'!$N28,FALSE)) -> 485 | G28: =IF(ISERROR(VLOOKUP(G$1,' '!$B$3:$Z$7456,'DNU Data'!$N28,FALSE)),0,VLOOKUP(G$1,' '!$B$3:$Z$7456,'DNU Data'!$N28,FALSE)) -> 510 | J28: =IF(ISERROR(VLOOKUP(J$1,' '!$B$3:$Z$7456,'DNU Data'!$N28,FALSE)),0,VLOOKUP(J$1,' '!$B$3:$Z$7456,'DNU Data'!$N28,FALSE)) -> 510 | N28: 19
A29: 1 Bedroom | D29: =IF(ISERROR(VLOOKUP(D$1,' '!$B$3:$Z$7456,'DNU Data'!$N29,FALSE)),0,VLOOKUP(D$1,' '!$B$3:$Z$7456,'DNU Data'!$N29,FALSE)) -> 486 | G29: =IF(ISERROR(VLOOKUP(G$1,' '!$B$3:$Z$7456,'DNU Data'!$N29,FALSE)),0,VLOOKUP(G$1,' '!$B$3:$Z$7456,'DNU Data'!$N29,FALSE)) -> 524 | J29: =IF(ISERROR(VLOOKUP(J$1,' '!$B$3:$Z$7456,'DNU Data'!$N29,FALSE)),0,VLOOKUP(J$1,' '!$B$3:$Z$7456,'DNU Data'!$N29,FALSE)) -> 524 | N29: =+N28+1 -> 20
A30: 2 Bedroom | D30: =IF(ISERROR(VLOOKUP(D$1,' '!$B$3:$Z$7456,'DNU Data'!$N30,FALSE)),0,VLOOKUP(D$1,' '!$B$3:$Z$7456,'DNU Data'!$N30,FALSE)) -> 584 | G30: =IF(ISERROR(VLOOKUP(G$1,' '!$B$3:$Z$7456,'DNU Data'!$N30,FALSE)),0,VLOOKUP(G$1,' '!$B$3:$Z$7456,'DNU Data'!$N30,FALSE)) -> 650 | J30: =IF(ISERROR(VLOOKUP(J$1,' '!$B$3:$Z$7456,'DNU Data'!$N30,FALSE)),0,VLOOKUP(J$1,' '!$B$3:$Z$7456,'DNU Data'!$N30,FALSE)) -> 650 | N30: 21
A31: 3 Bedroom | D31: =IF(ISERROR(VLOOKUP(D$1,' '!$B$3:$Z$7456,'DNU Data'!$N31,FALSE)),0,VLOOKUP(D$1,' '!$B$3:$Z$7456,'DNU Data'!$N31,FALSE)) -> 770 | G31: =IF(ISERROR(VLOOKUP(G$1,' '!$B$3:$Z$7456,'DNU Data'!$N31,FALSE)),0,VLOOKUP(G$1,' '!$B$3:$Z$7456,'DNU Data'!$N31,FALSE)) -> 937 | J31: =IF(ISERROR(VLOOKUP(J$1,' '!$B$3:$Z$7456,'DNU Data'!$N31,FALSE)),0,VLOOKUP(J$1,' '!$B$3:$Z$7456,'DNU Data'!$N31,FALSE)) -> 937 | N31: 22
A32: 4 Bedroom | D32: =IF(ISERROR(VLOOKUP(D$1,' '!$B$3:$Z$7456,'DNU Data'!$N32,FALSE)),0,VLOOKUP(D$1,' '!$B$3:$Z$7456,'DNU Data'!$N32,FALSE)) -> 840 | G32: =IF(ISERROR(VLOOKUP(G$1,' '!$B$3:$Z$7456,'DNU Data'!$N32,FALSE)),0,VLOOKUP(G$1,' '!$B$3:$Z$7456,'DNU Data'!$N32,FALSE)) -> 964 | J32: =IF(ISERROR(VLOOKUP(J$1,' '!$B$3:$Z$7456,'DNU Data'!$N32,FALSE)),0,VLOOKUP(J$1,' '!$B$3:$Z$7456,'DNU Data'!$N32,FALSE)) -> 964 | N32: 23
A33: 5 Bedroom | D33: =IF(ISERROR(VLOOKUP(D$1,' '!$B$3:$Z$7456,'DNU Data'!$N33,FALSE)),0,VLOOKUP(D$1,' '!$B$3:$Z$7456,'DNU Data'!$N33,FALSE)) -> 966 | G33: =IF(ISERROR(VLOOKUP(G$1,' '!$B$3:$Z$7456,'DNU Data'!$N33,FALSE)),0,VLOOKUP(G$1,' '!$B$3:$Z$7456,'DNU Data'!$N33,FALSE)) -> 1108.6 | J33: =IF(ISERROR(VLOOKUP(J$1,' '!$B$3:$Z$7456,'DNU Data'!$N33,FALSE)),0,VLOOKUP(J$1,' '!$B$3:$Z$7456,'DNU Data'!$N33,FALSE)) -> 1108.6 | N33: 24
A34: 6 Bedroom | D34: =IF(ISERROR(VLOOKUP(D$1,' '!$B$3:$Z$7456,'DNU Data'!$N34,FALSE)),0,VLOOKUP(D$1,' '!$B$3:$Z$7456,'DNU Data'!$N34,FALSE)) -> 1092 | G34: =IF(ISERROR(VLOOKUP(G$1,' '!$B$3:$Z$7456,'DNU Data'!$N34,FALSE)),0,VLOOKUP(G$1,' '!$B$3:$Z$7456,'DNU Data'!$N34,FALSE)) -> 1253.2 | J34: =IF(ISERROR(VLOOKUP(J$1,' '!$B$3:$Z$7456,'DNU Data'!$N34,FALSE)),0,VLOOKUP(J$1,' '!$B$3:$Z$7456,'DNU Data'!$N34,FALSE)) -> 1253.2 | N34: 25
A37: Operating Expense Pre-Pop
A38: 95% Form Expenses | D38: =IF(ISERROR(VLOOKUP(D$1,' '!$B$3:$Z$7456,$N38,FALSE)),0,VLOOKUP(D$1,' '!$B$3:$Z$7456,$N38,FALSE))*12 -> 4086.111184 | E38: =D38 -> 4086.111184 | G38: =IF(ISERROR(VLOOKUP(G$1,' '!$B$3:$Z$7456,$N38,FALSE)),0,VLOOKUP(G$1,' '!$B$3:$Z$7456,$N38,FALSE))*12 -> 0 | H38: =G38 -> 0 | J38: =IF(ISERROR(VLOOKUP(J$1,' '!$B$3:$Z$7456,$N38,FALSE)),0,VLOOKUP(J$1,' '!$B$3:$Z$7456,$N38,FALSE))*12 -> 0 | K38: =J38 -> 0 | N38: 10
A39: M2M | D39: =IF(ISERROR(VLOOKUP(D$1,' '!$B$3:$AB$7456,$N39,FALSE)),0,VLOOKUP(D$1,' '!$B$3:$AB$7456,$N39,FALSE)) -> 4920.384615 | G39: =IF(ISERROR(VLOOKUP(G$1,' '!$B$3:$AB$7456,$N39,FALSE)),0,VLOOKUP(G$1,' '!$B$3:$AB$7456,$N39,FALSE)) -> 4920.384615 | J39: =IF(ISERROR(VLOOKUP(J$1,' '!$B$3:$AB$7456,$N39,FALSE)),0,VLOOKUP(J$1,' '!$B$3:$AB$7456,$N39,FALSE)) -> 4920.384615 | N39: 26
A41: UA | D41: =IF(ISERROR(VLOOKUP(D$1,' '!$B$3:$Z$7456,'DNU Data'!$N41,FALSE)),0,VLOOKUP(D$1,' '!$B$3:$Z$7456,'DNU Data'!$N41,FALSE)) -> 0 | E41: =+D41 -> 0 | G41: =IF(ISERROR(VLOOKUP(G$1,' '!$B$3:$Z$7456,'DNU Data'!$N41,FALSE)),0,VLOOKUP(G$1,' '!$B$3:$Z$7456,'DNU Data'!$N41,FALSE)) -> 95 | H41: =+G41 -> 95 | J41: =IF(ISERROR(VLOOKUP(J$1,' '!$B$3:$Z$7456,'DNU Data'!$N41,FALSE)),0,VLOOKUP(J$1,' '!$B$3:$Z$7456,'DNU Data'!$N41,FALSE)) -> 95 | K41: =+J41 -> 95 | N41: 11

Sheet PHA List
A1: PHA | B1: PHA Name
A2: AK001 | B2: Alaska Housing Finance Corporation
A3: AL001 | B3: Housing Authority of the Birmingham District
A4: AL002 | B4: MOBILE HOUSING BOARD
A5: AL004 | B5: ANNISTON HA
A6: AL005 | B6: PHENIX CITY HOUSING AUTHORITY
A7: AL006 | B7: Housing Authority of the City of Montgomery
A8: AL007 | B8: Housing Authority of the City of Dothan
A9: AL008 | B9: Selma Housing Authority
A10: AL009 | B10: Housing Authority of the City of Attalla
A11: AL010 | B11: Fairfield Housing Authority
A12: AL011 | B12: Housing Authority of the City of Fort Payne
A13: AL012 | B13: Housing Authority of the City of Jasper
A14: AL013 | B14: Tarrant Housing Authority
A15: AL014 | B15: The Guntersville Housing Authority
A16: AL047 | B16: The Housing Authority of the City of Huntsville
A17: AL048 | B17: Housing Authority of the City of Decatur
A18: AL049 | B18: Greater Gadsden
A19: AL050 | B19: HA AUBURN
A20: AL051 | B20: Housing Authority of Red Bay
A21: AL052 | B21: HA CULLMAN
A22: AL053 | B22: Housing Authority of Hamilton, Alabama
A23: AL054 | B23: FLORENCE H/A
A24: AL055 | B24: HA CORDOVA
A25: AL056 | B25: Haleyville Housing Authority
A26: AL057 | B26: Sylacauga Housing Authority
A27: AL058 | B27: Winfield Housing Authority
A28: AL059 | B28: Housing Authority of the City of Tuscumbia
A29: AL060 | B29: HA RUSSELLVILLE
A30: AL061 | B30: HA OPELIKA
A31: AL062 | B31: Housing Authority of the City of Lanett, AL
A32: AL063 | B32: H A ONEONTA
A33: AL064 | B33: Housing Authority of the City of Carbon Hill
A34: AL065 | B34: Housing Authority of the City of Roanoke, AL
A35: AL066 | B35: Housing Authority of Reform
A36: AL067 | B36: Housing Authority of the City of Athens, Al
A37: AL068 | B37: Sheffield Housing Authority
A38: AL069 | B38: HA LEEDS
A39: AL070 | B39: City of Union Springs Housing Authority
A40: AL071 | B40: Housing Authority of Guin, Alabama
A41: AL072 | B41: HA COLUMBIANA
A42: AL073 | B42: HOUSING AUTHORITY OF THE CITY OF OZARK
A43: AL074 | B43: Housing Authority of Boston
A44: AL075 | B44: BOAZ HOUSING AUTHORITY
A45: AL076 | B45: HACKLEBURG HOUSING AUTHORITY
A46: AL077 | B46: HA TUSCALOOSA
A47: AL078 | B47: Housing Authority of the Town of Berry
A48: AL079 | B48: Housing Authority of the Town of Montevallo
A49: AL080 | B49: Housing Authority of the City of Moulton, AL
A50: AL081 | B50: Bear Creek Housing Authority
A51: AL082 | B51: CROSSVILLE HOUSING AUHTORITY
A52: AL083 | B52: Collinsville Housing Authority
A53: AL084 | B53: Housing Authority of the City of Vernon, AL
A54: AL085 | B54: Housing Authority of the Town of Calera
A55: AL086 | B55: Jefferson County Housing Authority
A56: AL087 | B56: Housing Authority of the City of Hartselle
A57: AL088 | B57: Housing Authority of the City of Luverne, AL
A58: AL089 | B58: Vincent Housing Authority
A59: AL090 | B59: PHIL CAMPBELL HOUSING AUTHORITY
A60: AL091 | B60: HA ARAB
A61: AL093 | B61: Housing Authority of the Town of Hanceville
A62: AL094 | B62: Housing Authority of the City of Georgiana
A63: AL095 | B63: HA MILLPORT
A64: AL096 | B64: Housing Authority of the City of Heflin
A65: AL098 | B65: Housing Authority of the City of Aliceville
A66: AL099 | B66: HA SCOTTSBORO
A67: AL100 | B67: Housing Authority of the City of Columbia
A68: AL101 | B68: Abbeville Housing Authority
A69: AL102 | B69: Altoona Housing Authority
A70: AL103 | B70: Housing Authority of the City of Hartford
A71: AL104 | B71: Cottonwood Housing Authority
A72: AL105 | B72: Housing Authority of the City of Talladega, AL
A73: AL106 | B73: Pell City Housing Authority
A74: AL107 | B74: HA ELBA
A75: AL108 | B75: Ragland Housing Authority
A76: AL109 | B76: Housing Authority of the City of Demopolis, AL
A77: AL110 | B77: HA PIEDMONT
A78: AL111 | B78: Housing Authority of the City of Florala
A79: AL112 | B79: HA OPP
A80: AL114 | B80: LINEVILLE HOUSING AUTHORITY
A81: AL115 | B81: ENTERPRISE HOUSING AUTHORITY
A82: AL116 | B82: YORK HOUSING AUTHORITY
A83: AL117 | B83: Washington County Housing Authority
A84: AL118 | B84: EUFAULA HOUSING AUTHORITY
A85: AL119 | B85: Housing Authority of the City of Sulligent, AL
A86: AL120 | B86: Housing Authority of the City of Linden
A87: AL121 | B87: Albertville Housing Authority
A88: AL122 | B88: Childersburg Housing Authority
A89: AL123 | B89: Housing Authority of the City of Headland, AL
A90: AL124 | B90: HA MIDLAND CITY
A91: AL125 | B91: HA BESSEMER
A92: AL126 | B92: Brundidge Housing Authority
A93: AL127 | B93: HA ANDALUSIA
A94: AL128 | B94: HA SAMSON
A95: AL129 | B95: WALKER COUNTY HOUSING AUTHORITY
A96: AL131 | B96: Housing Authority of the City of Prattville, AL
A97: AL132 | B97: Housing Authority of the City of Goodwater
A98: AL133 | B98: Housing Authority of the Town of Hobson City
A99: AL134 | B99: Housing Authority of the Town of Blountsville, AL
A100: AL135 | B100: Housing Authority of the Town of Valley Head, AL
A101: AL136 | B101: Housing Authority of the Town of Ashland
A102: AL137 | B102: Housing Authority of the City of Fayette
A103: AL138 | B103: GORDO HOUSING AUTHORITY
A104: AL139 | B104: HA JACKSONVILLE
A105: AL140 | B105: Housing Authority of the City of Centre, Al
A106: AL141 | B106: Housing Authority of the Town of Kennedy
A107: AL142 | B107: Housing Authority of the City of Newton
A108: AL143 | B108: Housing Authority of the Town of Slocomb
A109: AL144 | B109: HA ASHFORD
A110: AL145 | B110: Housing Authority of the City of Brantley
A111: AL146 | B111: Housing Authority of the City of Eutaw
A112: AL147 | B112: Housing Authority of the City of Bridgeport
A113: AL149 | B113: Housing Authority of the Town of New Brockton
A114: AL150 | B114: Housing Authority of the City of Clanton
A115: AL151 | B115: Housing Authority of the City of Brent
A116: AL152 | B116: HA NORTHPORT
A117: AL153 | B117: Housing Authority of the Town of Parrish
A118: AL154 | B118: HA ATMORE
A119: AL155 | B119: Housing Authority of the City of GREENVILLE
A120: AL156 | B120: Housing Authority of the City of Brewton
A121: AL157 | B121: Housing Authority of the City of Greensboro
A122: AL158 | B122: Housing Authority of the Town of Clayton
A123: AL159 | B123: Housing Authority of the City of Lafayette
A124: AL160 | B124: TUSKEGEE HOUSING AUTHORITY
A125: AL161 | B125: Housing Authority of the City of Marion, AL
A126: AL164 | B126: HA BAY MINETTE
A127: AL165 | B127: HA FOLEY
A128: AL166 | B128: Housing Authority of the City of Chickasaw
A129: AL167 | B129: STEVENSON HOUSING AUTHORITY
A130: AL168 | B130: Rainsville Housing Authority
A131: AL169 | B131: The Housing Authority of the City of Prichard
A132: AL171 | B132: UNIONTOWN HOUSING AUTHORITY
A133: AL172 | B133: HA TALLASSEE
A134: AL173 | B134: HA MONROEVILLE
A135: AL174 | B135: Housing Authority of the City of Alexander City
A136: AL175 | B136: Housing Authority of the City of Livingston
A137: AL176 | B137: Sumiton Housing Authority
A138: AL177 | B138: HA TROY
A139: AL178 | B139: Housing Authority of the City of Dadeville
A140: AL179 | B140: Housing Authority of the City of Daleville
A141: AL181 | B141: EVERGREEN HOUSING AUTHORITY
A142: AL182 | B142: Triana Housing Authority
A143: AL187 | B143: Regional HA of Lawrence, Cullman & Morgan Counties
A144: AL189 | B144: Top of Alabama Regional Housing Authority
A145: AL190 | B145: Housing Authority of Greene County, AL
A146: AL192 | B146: South Central Alabama Regional HA
A147: AL193 | B147: Housing Authority of the Town of Fort Deposit
A148: AL199 | B148: Housing Authority of the City of Valley
A149: AL202 | B149: MOBILE COUNTY HOUSING AUTHORITY
A150: AR002 | B150: North Little Rock Housing Authority
A151: AR003 | B151: The Housing Authority of the City of Fort Smi
A152: AR004 | B152: Housing Authority of the City of Little Rock
A153: AR005 | B153: Blytheville Housing Authority
A154: AR006 | B154: Housing Authority of the City of Conway
A155: AR010 | B155: NW Regional Housing Authority
A156: AR012 | B156: Arkadelphia Housing Authority
A157: AR015 | B157: Housing Authority of the City of Texarkana
A158: AR016 | B158: Camden Housing Authority
A159: AR017 | B159: Housing Authority of the City of Pine Bluff
A160: AR018 | B160: Housing Authority of the City of Magnolia
A161: AR020 | B161: Little River County Housing Authority
A162: AR021 | B162: Housing Authority of the City of Osceola
A163: AR022 | B163: Housing Authority of the County of Sevier
A164: AR023 | B164: Housing Authority of the County of Poinsett
A165: AR024 | B165: West Memphis Housing Authority
A166: AR025 | B166: Housing Authority of the County of Howard
A167: AR026 | B167: Housing Authority of the City of Morrilton
A168: AR027 | B168: Housing Authority of the City of Marianna
A169: AR028 | B169: Housing Authority of the City of Newport
A170: AR029 | B170: Housing Authority of the City of Van Buren
A171: AR031 | B171: Hot Springs Housing Authority
A172: AR032 | B172: Housing Authority of the City of Paris
A173: AR034 | B173: Trumann Housing Authority
A174: AR035 | B174: Searcy Housing Authority
A175: AR037 | B175: Housing Authority of the City of Prescott
A176: AR038 | B176: Housing Authority of the City of Booneville
A177: AR039 | B177: Wynne Housing Authority
A178: AR040 | B178: Housing Authority of the City of Des Arc
A179: AR041 | B179: Lonoke County Housing Authority
A180: AR042 | B180: Star City Housing Authority
A181: AR043 | B181: Housing Authority of the City of Dumas
A182: AR044 | B182: Housing Authority of the City of Waldron
A183: AR045 | B183: Pike County Housing Authority
A184: AR046 | B184: Housing Authority of the City of Amity
A185: AR047 | B185: Housing Authority of the City of Hoxie
A186: AR049 | B186: Housing Authority of the City of Gurdon
A187: AR050 | B187: Housing Authority of the City of Helena
A188: AR051 | B188: Housing Authority of the City of Clarksville
A189: AR052 | B189: Clarendon Housing Authority
A190: AR053 | B190: Housing Authority of the City of McGehee
A191: AR054 | B191: Housing Authority of the City of Wilson
A192: AR055 | B192: Housing Authority of the City of Dardanelle
A193: AR057 | B193: Housing Authority of the City of Imboden
A194: AR059 | B194: Housing Authority of the City of Brinkley
A195: AR060 | B195: Housing Authority of the City of West Helena
A196: AR061 | B196: Housing Authority of the City of Hughes
A197: AR063 | B197: Housing Authority of the City of Pocahontas
A198: AR064 | B198: Housing Authority of the City of Earle
A199: AR065 | B199: Housing Authority of the City of Stephens
A200: AR066 | B200: Russellville Housing Authority
... 2941 more rows

Sheet  (hidden)
A1: SORTED ON PHA THEN PIC # | F1: x | K1: x | M1: 0 | N1: 1 | O1: 2 | P1: 3 | Q1: 4 | R1: 5 | S1: 6 | T1: Fair Market Rent
A2: PHA | B2: PIC Development Number | C2: Project Name | D2: Total PIC Units | E2: Avg BR Size | F2: Operating Fund (per unit per year) | G2: Tenant Rents (per unit per year) | H2: Capital Fund (per unit per year) | I2: Weighted Contract Rent PUM | J2: Weighted FMR | K2: Total Expenses (HUD Calculation) | L2: Utility Allowance | M2: PIC Units 0-BR | N2: PIC Units 1-BR | O2: PIC Units 2-BR | P2: PIC Units 3-BR | Q2: PIC Units 4-BR | R2: PIC Units 5-BR | S2: PIC Units 6+-BR | T2: FMR 0 BR | U2: FMR 1 BR | V2: FMR 2 BR | W2: FMR 3 BR | X2: FMR 4 BR | Y2: FMR 5 BR | Z2: FMR 6+ BR | AA2: M2M
A3: AK001 | B3: AK001000213 | C3: Wrangell | D3: 20 | E3: 2.4 | F3: 10480.69935 | G3: 3550.44 | H3: 1688.7 | I3: 1309.941698 | J3: 823.6 | K3: 849.7159701 | L3: 38.84185224 | M3: 0 | N3: 4 | O3: 4 | P3: 12 | Q3: 0 | R3: 0 | S3: 0 | T3: 520 | U3: 591 | V3: 749 | W3: 926 | X3: 954 | Y3: 1097.1 | Z3: 1261.665 | AA3: 7954.178571
A4: AK001 | B4: AK001000216 | C4: Cordova | D4: 16 | E4: 3 | F4: 8591.629888 | G4: 6844.32 | H4: 1807.125 | I4: 1436.933301 | J4: 1088 | K4: 945.5512292 | L4: 38.84185224 | M4: 0 | N4: 0 | O4: 0 | P4: 16 | Q4: 0 | R4: 0 | S4: 0 | T4: 503 | U4: 621 | V4: 775 | W4: 1088 | X4: 1225 | Y4: 1408.75 | Z4: 1592.5 | AA4: 7954.178571
A5: AK001 | B5: AK001000244 | C5: Wasilla | D5: 32 | E5: 1 | F5: 6469.527543 | G5: 4098.24 | H5: 1490.5625 | I5: 1004.887027 | J5: 712 | K5: 551.8495573 | L5: 38.84185224 | M5: 0 | N5: 32 | O5: 0 | P5: 0 | Q5: 0 | R5: 0 | S5: 0 | T5: 611 | U5: 712 | V5: 908 | W5: 1291 | X5: 1568 | Y5: 1803.2 | Z5: 2038.4 | AA5: 7954.178571
A6: AK001 | B6: AK001000247 | C6: Anchorage Central | D6: 120 | E6: 1 | F6: 6152.710131 | G6: 4829.28 | H6: 1544.875 | I6: 1043.905428 | J6: 803 | K6: 583.3869514 | L6: 38.84185224 | M6: 0 | N6: 120 | O6: 0 | P6: 0 | Q6: 0 | R6: 0 | S6: 0 | T6: 706 | U6: 803 | V6: 1007 | W6: 1450 | X6: 1766 | Y6: 2030.9 | Z6: 2295.8 | AA6: 7954.178571
A7: AK001 | B7: AK001000257 | C7: Bethel | D7: 117 | E7: 3.256410256 | F7: 9916.739734 | G7: 3309.36 | H7: 1162.230769 | I7: 1199.021804 | J7: 1799.442308 | K7: 775.7568732 | L7: 38.84185224 | M7: 0 | N7: 0 | O7: 0 | P7: 92 | Q7: 20 | R7: 5 | S7: 0 | T7: 892 | U7: 1117 | V7: 1356 | W7: 1622 | X7: 2381 | Y7: 2738.15 | Z7: 3095.3 | AA7: 7954.178571
A8: AK001 | B8: AK001000260 | C8: Nome | D8: 33 | E8: 2.909090909 | F8: 7068.839741 | G8: 5625.72 | H8: 1105.939394 | I8: 1150.056749 | J8: 1425.090909 | K8: 722.567697 | L8: 38.84185224 | M8: 0 | N8: 0 | O8: 8 | P8: 20 | Q8: 5 | R8: 0 | S8: 0 | T8: 831 | U8: 1068 | V8: 1226 | W8: 1480 | X8: 1524 | Y8: 1752.6 | Z8: 1981.2 | AA8: 7954.178571
A9: AK001 | B9: AK001000263 | C9: Valdez | D9: 7 | E9: 2.428571429 | F9: 10059.74352 | G9: 4036.32 | H9: 1021 | I9: 1259.755293 | J9: 909.1428571 | K9: 845.2181667 | L9: 38.84185224 | M9: 0 | N9: 0 | O9: 4 | P9: 3 | Q9: 0 | R9: 0 | S9: 0 | T9: 503 | U9: 621 | V9: 775 | W9: 1088 | X9: 1225 | Y9: 1408.75 | Z9: 1592.5 | AA9: 7954.178571
A10: AK001 | B10: AK001000265 | C10: Kodiak | D10: 40 | E10: 2.15 | F10: 7435.726454 | G10: 6412.8 | H10: 967.625 | I10: 1234.687594 | J10: 1056.7 | K10: 815.3580833 | L10: 38.84185224 | M10: 0 | N10: 10 | O10: 17 | P10: 10 | Q10: 3 | R10: 0 | S10: 0 | T10: 630 | U10: 738 | V10: 971 | W10: 1395 | X10: 1477 | Y10: 1698.55 | Z10: 1920.1 | AA10: 7954.178571
A11: AK001 | B11: AK001000271 | C11: ANCHORAGE SOUTH | D11: 176 | E11: 2.329545455 | F11: 9224.073704 | G11: 4154.04 | H11: 1854.223529 | I11: 1269.364292 | J11: 1151.255114 | K11: 785.0597793 | L11: 38.84185224 | M11: 0 | N11: 0 | O11: 120 | P11: 55 | Q11: 0 | R11: 1 | S11: 0 | T11: 706 | U11: 803 | V11: 1007 | W11: 1450 | X11: 1766 | Y11: 2030.9 | Z11: 2295.8 | AA11: 7954.178571
A12: AK001 | B12: AK001000274 | C12: ANCHORAGE EAST | D12: 212 | E12: 2.160377358 | F12: 7357.732848 | G12: 4947.72 | H12: 1773.310429 | I12: 1173.229478 | J12: 1137.759434 | K12: 692.8554041 | L12: 38.84185224 | M12: 9 | N12: 32 | O12: 89 | P12: 80 | Q12: 2 | R12: 0 | S12: 0 | T12: 706 | U12: 803 | V12: 1007 | W12: 1450 | X12: 1766 | Y12: 2030.9 | Z12: 2295.8 | AA12: 7954.178571
A13: AK001 | B13: AK001000275 | C13: FAIRBANKS | D13: 165 | E13: 2.436363636 | F13: 8812.962064 | G13: 4755.72 | H13: 1780.563636 | I13: 1279.107902 | J13: 1218.654545 | K13: 798.5569495 | L13: 38.84185224 | M13: 0 | N13: 60 | O13: 4 | P13: 74 | Q13: 23 | R13: 4 | S13: 0 | T13: 653 | U13: 785 | V13: 1004 | W13: 1454 | X13: 1535 | Y13: 1765.25 | Z13: 1995.5 | AA13: 7954.178571
A14: AK001 | B14: AK001000277 | C14: JUNEAU | D14: 206 | E14: 2.014563107 | F14: 7617.643534 | G14: 4866.24 | H14: 1664.425121 | I14: 1179.030672 | J14: 1219.25534 | K14: 707.9781836 | L14: 38.84185224 | M14: 0 | N14: 85 | O14: 53 | P14: 50 | Q14: 16 | R14: 2 | S14: 0 | T14: 744 | U14: 912 | V14: 1147 | W14: 1550 | X14: 1932 | Y14: 2221.8 | Z14: 2511.6 | AA14: 7954.178571
A15: AK001 | B15: AK001000279 | C15: KETCHIKAN | D15: 73 | E15: 1.438356164 | F15: 7229.191253 | G15: 4689.12 | H15: 1530.027027 | I15: 1120.708548 | J15: 871.1780822 | K15: 661.7416301 | L15: 38.84185224 | M15: 0 | N15: 57 | O15: 0 | P15: 16 | Q15: 0 | R15: 0 | S15: 0 | T15: 586 | U15: 748 | V15: 899 | W15: 1310 | X15: 1579 | Y15: 1815.85 | Z15: 2052.7 | AA15: 7954.178571
A16: AK001 | B16: AK001000280 | C16: SITKA | D16: 43 | E16: 1.790697674 | F16: 6591.698744 | G16: 5455.44 | H16: 861.8409091 | I16: 1075.759914 | J16: 1063.418605 | K16: 669.400875 | L16: 38.84185224 | M16: 0 | N16: 23 | O16: 8 | P16: 10 | Q16: 2 | R16: 0 | S16: 0 | T16: 733 | U16: 845 | V16: 1008 | W16: 1469 | X16: 1769 | Y16: 2034.35 | Z16: 2299.7 | AA16: 7954.178571
A17: AL001 | B17: AL001000001 | C17: ELYTON VILLAGE | D17: 510 | E17: 2.064705882 | F17: 5144.434734 | G17: 616.32 | H17: 1299.785992 | I17: 588.3783939 | J17: 769.9333333 | K17: 456.627213 | L17: 83.33695652 | M17: 0 | N17: 28 | O17: 421 | P17: 61 | Q17: 0 | R17: 0 | S17: 0 | T17: 605 | U17: 673 | V17: 750 | W17: 952 | X17: 980 | Y17: 1127 | Z17: 1274 | AA17: 4533.36
A18: AL001 | B18: AL001000004 | C18: SOUTHTOWN | D18: 451 | E18: 1.835920177 | F18: 4747.973154 | G18: 732.96 | H18: 1264.804396 | I18: 562.1471177 | J18: 762.3104213 | K18: 431.184134 | L18: 89.43188406 | M18: 0 | N18: 164 | O18: 197 | P18: 90 | Q18: 0 | R18: 0 | S18: 0 | T18: 605 | U18: 673 | V18: 750 | W18: 952 | X18: 980 | Y18: 1127 | Z18: 1274 | AA18: 4533.36
A19: AL001 | B19: AL001000006 | C19: CHARLES P MARKS VILLAGE | D19: 496 | E19: 2.510080645 | F19: 5824.509772 | G19: 223.56 | H19: 1375.096 | I19: 618.5963429 | J19: 847.9112903 | K19: 479.5278583 | L19: 132.1508121 | M19: 0 | N19: 50 | O19: 199 | P19: 199 | Q19: 40 | R19: 8 | S19: 0 | T19: 605 | U19: 673 | V19: 750 | W19: 952 | X19: 980 | Y19: 1127 | Z19: 1274 | AA19: 4533.36
A20: AL001 | B20: AL001000007 | C20: JOSEPH H LOVEMAN VILLAGE | D20: 497 | E20: 2.507042254 | F20: 5890.989793 | G20: 513.24 | H20: 1359.39 | I20: 646.9695895 | J20: 846.6720322 | K20: 507.3862917 | L20: 117.9141914 | M20: 0 | N20: 60 | O20: 190 | P20: 190 | Q20: 49 | R20: 8 | S20: 0 | T20: 605 | U20: 673 | V20: 750 | W20: 952 | X20: 980 | Y20: 1127 | Z20: 1274 | AA20: 4533.36
A21: AL001 | B21: AL001000009 | C21: SMITHFIELD COURT | D21: 454 | E21: 1.359030837 | F21: 3733.315587 | G21: 1250.16 | H21: 1224.796053 | I21: 517.3563443 | J21: 711.9757709 | K21: 387.4284432 | L21: 78.87171053 | M21: 16 | N21: 299 | O21: 99 | P21: 40 | Q21: 0 | R21: 0 | S21: 0 | T21: 605 | U21: 673 | V21: 750 | W21: 952 | X21: 980 | Y21: 1127 | Z21: 1274 | AA21: 4533.36
A22: AL001 | B22: AL001000010 | C22: TOM BROWN VILLAGE | D22: 244 | E22: 3.459016393 | F22: 6489.931276 | G22: 660.36 | H22: 1496.951613 | I22: 720.6049712 | J22: 942.8032787 | K22: 569.8456409 | L22: 122.0957447 | M22: 0 | N22: 32 | O22: 20 | P22: 40 | Q22: 108 | R22: 44 | S22: 0 | T22: 605 | U22: 673 | V22: 750 | W22: 952 | X22: 980 | Y22: 1127 | Z22: 1274 | AA22: 4533.36
A23: AL001 | B23: AL001000011 | C23: MORTON SIMPSON VILLAGE | D23: 497 | E23: 2.47082495 | F23: 5797.578912 | G23: 262.32 | H23: 1377.212 | I23: 619.7574264 | J23: 843.7525151 | K23: 479.8127 | L23: 134.8677686 | M23: 0 | N23: 67 | O23: 181 | P23: 197 | Q23: 52 | R23: 0 | S23: 0 | T23: 605 | U23: 673 | V23: 750 | W23: 952 | X23: 980 | Y23: 1127 | Z23: 1274 | AA23: 4533.36
A24: AL001 | B24: AL001000013 | C24: COLLEGEVILLE CENTER | D24: 390 | E24: 2.779487179 | F24: 8102.458491 | G24: 0 | H24: 1428.236041 | I24: 794.2232357 | J24: 875.3384615 | K24: 644.3371624 | L24: 123.352459 | M24: 0 | N24: 53 | O24: 114 | P24: 124 | Q24: 64 | R24: 35 | S24: 0 | T24: 605 | U24: 673 | V24: 750 | W24: 952 | X24: 980 | Y24: 1127 | Z24: 1274 | AA24: 4533.36
A25: AL001 | B25: AL001000014 | C25: RUSSELL B HARRIS HOMES | D25: 188 | E25: 2.292553191 | F25: 4823.374217 | G25: 1279.08 | H25: 1381.239362 | I25: 623.6384668 | J25: 822.2340426 | K25: 480.2470993 | L25: 86.59731544 | M25: 0 | N25: 52 | O25: 59 | P25: 57 | Q25: 10 | R25: 10 | S25: 0 | T25: 605 | U25: 673 | V25: 750 | W25: 952 | X25: 980 | Y25: 1127 | Z25: 1274 | AA25: 4533.36
A26: AL001 | B26: AL001000016 | C26: NORTH BIRMINGHAM HOMES | D26: 285 | E26: 2.807017544 | F26: 7027.856536 | G26: 572.76 | H26: 1455.476027 | I26: 754.6783747 | J26: 882.3508772 | K26: 610.0113497 | L26: 118.0736842 | M26: 0 | N26: 49 | O26: 65 | P26: 96 | Q26: 44 | R26: 29 | S26: 2 | T26: 605 | U26: 673 | V26: 750 | W26: 952 | X26: 980 | Y26: 1127 | Z26: 1274 | AA26: 4533.36
A27: AL001 | B27: AL001000017 | C27: COOPER GREEN HOMES | D27: 226 | E27: 2.455752212 | F27: 3897.676842 | G27: 1367.76 | H27: 1442.237885 | I27: 558.9519087 | J27: 836.9336283 | K27: 408.7426476 | L27: 77.33653846 | M27: 0 | N27: 50 | O27: 69 | P27: 66 | Q27: 36 | R27: 5 | S27: 0 | T27: 605 | U27: 673 | V27: 750 | W27: 952 | X27: 980 | Y27: 1127 | Z27: 1274 | AA27: 4533.36
A28: AL001 | B28: AL001000018 | C28: RALPH KIMBROUGH HOMES | D28: 230 | E28: 2.343478261 | F28: 5310.057443 | G28: 789.12 | H28: 1404.800866 | I28: 625.3359869 | J28: 827.4826087 | K28: 482.1166278 | L28: 109.8742515 | M28: 0 | N28: 67 | O28: 64 | P28: 66 | Q28: 20 | R28: 12 | S28: 1 | T28: 605 | U28: 673 | V28: 750 | W28: 952 | X28: 980 | Y28: 1127 | Z28: 1274 | AA28: 4533.36
A29: AL001 | B29: AL001000021 | C29: FREEDOM MANOR | D29: 101 | E29: 1 | F29: 2677.153862 | G29: 2826 | H29: 1274.941748 | I29: 564.8511775 | J29: 673 | K29: 424.3867362 | L29: 0 | M29: 0 | N29: 101 | O29: 0 | P29: 0 | Q29: 0 | R29: 0 | S29: 0 | T29: 605 | U29: 673 | V29: 750 | W29: 952 | X29: 980 | Y29: 1127 | Z29: 1274 | AA29: 4533.36
A30: AL001 | B30: AL001000023 | C30: ROOSEVELT CITY | D30: 126 | E30: 3.380952381 | F30: 6123.471738 | G30: 0 | H30: 1552.415385 | I30: 639.6632398 | J30: 953.1825397 | K30: 468.9397334 | L30: 201.4814815 | M30: 0 | N30: 4 | O30: 12 | P30: 57 | Q30: 38 | R30: 15 | S30: 0 | T30: 605 | U30: 673 | V30: 750 | W30: 952 | X30: 980 | Y30: 1127 | Z30: 1274 | AA30: 4533.36
A31: AL001 | B31: AL001000031 | C31: Park Place | D31: 87 | E31: 1.931034483 | F31: 4344.920824 | G31: 2322.48 | H31: 653.7471264 | I31: 610.0975881 | J31: 772.862069 | K31: 523.0979176 | L31: 105.4657534 | M31: 0 | N31: 27 | O31: 40 | P31: 19 | Q31: 1 | R31: 0 | S31: 0 | T31: 605 | U31: 673 | V31: 750 | W31: 952 | X31: 980 | Y31: 1127 | Z31: 1274 | AA31: 4533.36
A32: AL001 | B32: AL001000032 | C32: Park Place II | D32: 86 | E32: 1.953488372 | F32: 4543.081914 | G32: 2493.96 | H32: 649.4069767 | I32: 640.5454124 | J32: 776.9418605 | K32: 553.113098 | L32: 105.32 | M32: 0 | N32: 25 | O32: 40 | P32: 21 | Q32: 0 | R32: 0 | S32: 0 | T32: 605 | U32: 673 | V32: 750 | W32: 952 | X32: 980 | Y32: 1127 | Z32: 1274 | AA32: 4533.36
A33: AL001 | B33: AL001000033 | C33: Park Place III | D33: 67 | E33: 1.074626866 | F33: 2625.804982 | G33: 2417.88 | H33: 539.2238806 | I33: 465.2424052 | J33: 678.7462687 | K33: 387.8206269 | L33: 82.8245614 | M33: 0 | N33: 62 | O33: 5 | P33: 0 | Q33: 0 | R33: 0 | S33: 0 | T33: 605 | U33: 673 | V33: 750 | W33: 952 | X33: 980 | Y33: 1127 | Z33: 1274 | AA33: 4533.36
A34: AL001 | B34: AL001000034 | C34: TUXEDO TERRACE/HOPE IV-PHASE I | D34: 56 | E34: 2.035714286 | F34: 4308.329073 | G34: 1652.76 | H34: 664.0714286 | I34: 552.0997209 | J34: 786.7142857 | K34: 467.0258244 | L34: 102.8974359 | M34: 0 | N34: 16 | O34: 24 | P34: 14 | Q34: 2 | R34: 0 | S34: 0 | T34: 605 | U34: 673 | V34: 750 | W34: 952 | X34: 980 | Y34: 1127 | Z34: 1274 | AA34: 4533.36
A35: AL001 | B35: AL001000037 | C35: GLENBROOK AT OXMOOR-HOPEVI PHASE I | D35: 50 | E35: 2 | F35: 2395.857412 | G35: 2129.64 | H35: 647.9 | I35: 431.1297745 | J35: 775 | K35: 345.9266667 | L35: 135.0222222 | M35: 0 | N35: 10 | O35: 30 | P35: 10 | Q35: 0 | R35: 0 | S35: 0 | T35: 605 | U35: 673 | V35: 750 | W35: 952 | X35: 980 | Y35: 1127 | Z35: 1274 | AA35: 4533.36
A36: AL001 | B36: AL001000040 | C36: MASON CITY I | D36: 7 | E36: 3.142857143 | F36: 0 | G36: 0 | H36: 802.2857143 | I36: 66.85714286 | J36: 956 | K36: 0 | L36: 0 | M36: 0 | N36: 0 | O36: 0 | P36: 6 | Q36: 1 | R36: 0 | S36: 0 | T36: 605 | U36: 673 | V36: 750 | W36: 952 | X36: 980 | Y36: 1127 | Z36: 1274 | AA36: 4533.36
A37: AL002 | B37: AL002000001 | C37: OAKLAWN HOMES | D37: 100 | E37: 2.04 | F37: 5711.882709 | G37: 825.36 | H37: 1234.97 | I37: 647.6747085 | J37: 745.24 | K37: 539.9160729 | L37: 46.4 | M37: 0 | N37: 16 | O37: 64 | P37: 20 | Q37: 0 | R37: 0 | S37: 0 | T37: 591 | U37: 633 | V37: 714 | W37: 935 | X37: 1104 | Y37: 1269.6 | Z37: 1435.2 | AA37: 4533.36
A38: AL002 | B38: AL002000002 | C38: ORANGE GROVE HOMES | D38: 274 | E38: 1.97080292 | F38: 3002.491174 | G38: 2109.36 | H38: 1186.843066 | I38: 524.8375324 | J38: 737.6934307 | K38: 414.5596336 | L38: 46.8 | M38: 0 | N38: 59 | O38: 164 | P38: 51 | Q38: 0 | R38: 0 | S38: 0 | T38: 591 | U38: 633 | V38: 714 | W38: 935 | X38: 1104 | Y38: 1269.6 | Z38: 1435.2 | AA38: 4533.36
A39: AL002 | B39: AL002000003 | C39: ROGER WILLIAMS HOMES | D39: 449 | E39: 2.398663697 | F39: 5675.021754 | G39: 1382.28 | H39: 1307.300885 | I39: 697.0472382 | J39: 815.8596882 | K39: 582.0130829 | L39: 47.57333333 | M39: 0 | N39: 56 | O39: 190 | P39: 171 | Q39: 32 | R39: 0 | S39: 0 | T39: 591 | U39: 633 | V39: 714 | W39: 935 | X39: 1104 | Y39: 1269.6 | Z39: 1435.2 | AA39: 4533.36
A40: AL002 | B40: AL002000005 | C40: THOMAS JAMES PLACE | D40: 795 | E40: 2.096855346 | F40: 4421.509063 | G40: 1209.96 | H40: 1283.952941 | I40: 576.2842635 | J40: 758.1099371 | K40: 463.6593398 | L40: 96.52611219 | M40: 0 | N40: 132 | O40: 462 | P40: 197 | Q40: 0 | R40: 4 | S40: 0 | T40: 591 | U40: 633 | V40: 714 | W40: 935 | X40: 1104 | Y40: 1269.6 | Z40: 1435.2 | AA40: 4533.36
A41: AL002 | B41: AL002000006 | C41: GULF VILLAGE | D41: 199 | E41: 2.095477387 | F41: 4327.714008 | G41: 1391.04 | H41: 1279.100503 | I41: 583.1532509 | J41: 756.2060302 | K41: 468.9631399 | L41: 46.29946524 | M41: 0 | N41: 30 | O41: 120 | P41: 49 | Q41: 0 | R41: 0 | S41: 0 | T41: 591 | U41: 633 | V41: 714 | W41: 935 | X41: 1104 | Y41: 1269.6 | Z41: 1435.2 | AA41: 4533.36
A42: AL002 | B42: AL002000008 | C42: JOSEPHINE ALLEN HOMES | D42: 285 | E42: 2.578947368 | F42: 5922.522951 | G42: 989.76 | H42: 1335.575342 | I42: 687.3169397 | J42: 857.3831579 | K42: 569.3944184 | L42: 38.84185224 | M42: 0 | N42: 54 | O42: 72 | P42: 111 | Q42: 36 | R42: 12 | S42: 0 | T42: 591 | U42: 633 | V42: 714 | W42: 935 | X42: 1104 | Y42: 1269.6 | Z42: 1435.2 | AA42: 4533.36
A43: AL002 | B43: AL002000010 | C43: R V TAYLOR PLAZA | D43: 444 | E43: 2.333333333 | F43: 5555.546759 | G43: 1677.84 | H43: 1338.997778 | I43: 714.3672814 | J43: 825.6288288 | K43: 594.8161808 | L43: 46.49760766 | M43: 0 | N43: 140 | O43: 68 | P43: 196 | Q43: 28 | R43: 12 | S43: 0 | T43: 591 | U43: 633 | V43: 714 | W43: 935 | X43: 1104 | Y43: 1269.6 | Z43: 1435.2 | AA43: 4533.36
A44: AL002 | B44: AL002000012 | C44: CENTRAL PLAZA TOWERS | D44: 456 | E44: 0.6513157895 | F44: 2163.9507 | G44: 3230.76 | H44: 1116.773529 | I44: 542.6249996 | J44: 622.1337719 | K44: 439.6439684 | L44: 0.335443038 | M44: 196 | N44: 225 | O44: 33 | P44: 2 | Q44: 0 | R44: 0 | S44: 0 | T44: 591 | U44: 633 | V44: 714 | W44: 935 | X44: 1104 | Y44: 1269.6 | Z44: 1435.2 | AA44: 4533.36
A45: AL002 | B45: AL002000013 | C45: Emerson Gardens | D45: 94 | E45: 1.085106383 | F45: 2548.87531 | G45: 1587.6 | H45: 1223.87234 | I45: 446.6883121 | J45: 639.893617 | K45: 337.4561959 | L45: 105.7837838 | M45: 0 | N45: 86 | O45: 8 | P45: 0 | Q45: 0 | R45: 0 | S45: 0 | T45: 591 | U45: 633 | V45: 714 | W45: 935 | X45: 1104 | Y45: 1269.6 | Z45: 1435.2 | AA45: 4533.36
A46: AL002 | B46: AL002000016 | C46: FRANK W. BOYKIN TOWERS | D46: 122 | E46: 1.106557377 | F46: 1940.996377 | G46: 3252.72 | H46: 1216.983607 | I46: 534.2249986 | J46: 641.6311475 | K46: 420.3468276 | L46: 0 | M46: 0 | N46: 109 | O46: 13 | P46: 0 | Q46: 0 | R46: 0 | S46: 0 | T46: 591 | U46: 633 | V46: 714 | W46: 935 | X46: 1104 | Y46: 1269.6 | Z46: 1435.2 | AA46: 4533.36
A47: AL002 | B47: AL002000019 | C47: DOWNTOWN RENAISSANCE I LP | D47: 57 | E47: 1.175438596 | F47: 2105.756536 | G47: 1774.32 | H47: 605.8947368 | I47: 373.8426171 | J47: 647.2105263 | K47: 315.4126667 | L47: 95.94736842 | M47: 0 | N47: 47 | O47: 10 | P47: 0 | Q47: 0 | R47: 0 | S47: 0 | T47: 591 | U47: 633 | V47: 714 | W47: 935 | X47: 1104 | Y47: 1269.6 | Z47: 1435.2 | AA47: 4533.36
A48: AL002 | B48: AL002000021 | C48: THE RENAISSANCE FAMILY | D48: 87 | E48: 2.068965517 | F48: 1892.954908 | G48: 1717.92 | H48: 737.8045977 | I48: 362.3899588 | J48: 751.7701149 | K48: 293.2681667 | L48: 183.797619 | M48: 0 | N48: 14 | O48: 53 | P48: 20 | Q48: 0 | R48: 0 | S48: 0 | T48: 591 | U48: 633 | V48: 714 | W48: 935 | X48: 1104 | Y48: 1269.6 | Z48: 1435.2 | AA48: 4533.36
A49: AL004 | B49: AL004000001 | C49: GLENADDIE HOMES | D49: 264 | E49: 2.113636364 | F49: 4474.047129 | G49: 165.72 | H49: 1214.651515 | I49: 487.8682203 | J49: 672.0541667 | K49: 385.4964544 | L49: 146.6521739 | M49: 0 | N49: 66 | O49: 116 | P49: 70 | Q49: 10 | R49: 2 | S49: 0 | T49: 461 | U49: 509 | V49: 632 | W49: 835 | X49: 981 | Y49: 1128.15 | Z49: 1275.3 | AA49: 4533.36
A50: AL004 | B50: AL004000002 | C50: COOPER HOMES | D50: 229 | E50: 2.524017467 | F50: 4950.751753 | G50: 16.8 | H50: 1271.628821 | I50: 519.9317145 | J50: 738.7617904 | K50: 413.0441844 | L50: 133.5962441 | M50: 0 | N50: 26 | O50: 92 | P50: 79 | Q50: 29 | R50: 3 | S50: 0 | T50: 461 | U50: 509 | V50: 632 | W50: 835 | X50: 981 | Y50: 1128.15 | Z50: 1275.3 | AA50: 4533.36
A51: AL004 | B51: AL004000003 | C51: CONSTANTINE HOMES | D51: 254 | E51: 2.37007874 | F51: 4877.29496 | G51: 0 | H51: 1256.74902 | I51: 511.1674711 | J51: 712.6435039 | K51: 404.1811936 | L51: 150.2618026 | M51: 0 | N51: 36 | O51: 114 | P51: 81 | Q51: 20 | R51: 3 | S51: 0 | T51: 461 | U51: 509 | V51: 632 | W51: 835 | X51: 981 | Y51: 1128.15 | Z51: 1275.3 | AA51: 4533.36
A52: AL005 | B52: AL005000001 | C52: RIVERVIEW | D52: 306 | E52: 2.117647059 | F52: 4000.281674 | G52: 1309.2 | H52: 1146.882353 | I52: 538.0292296 | J52: 733.6254902 | K52: 435.9420125 | L52: 57.6975945 | M52: 0 | N52: 84 | O52: 118 | P52: 92 | Q52: 8 | R52: 4 | S52: 0 | T52: 558 | U52: 588 | V52: 673 | W52: 895 | X52: 1059 | Y52: 1217.85 | Z52: 1376.7 | AA52: 4533.36
A53: AL005 | B53: AL005000002 | C53: DOUGLAS | D53: 272 | E53: 1.889705882 | F53: 3541.587517 | G53: 1730.88 | H53: 1115.400735 | I53: 532.324208 | J53: 692.6433824 | K53: 431.2329994 | L53: 61.85447761 | M53: 0 | N53: 91 | O53: 128 | P53: 45 | Q53: 8 | R53: 0 | S53: 0 | T53: 558 | U53: 588 | V53: 673 | W53: 895 | X53: 1059 | Y53: 1217.85 | Z53: 1376.7 | AA53: 4533.36
A54: AL005 | B54: AL005000005 | C54: STOUGH | D54: 200 | E54: 2.37 | F54: 3468.441652 | G54: 1216.2 | H54: 1230.895 | I54: 492.9638974 | J54: 767.9955 | K54: 384.419875 | L54: 109.1887755 | M54: 0 | N54: 30 | O54: 92 | P54: 58 | Q54: 14 | R54: 6 | S54: 0 | T54: 558 | U54: 588 | V54: 673 | W54: 895 | X54: 1059 | Y54: 1217.85 | Z54: 1376.7 | AA54: 4533.36
A55: AL005 | B55: AL005000006 | C55: BLAKE | D55: 68 | E55: 0.8235294118 | F55: 1555.679877 | G55: 2383.32 | H55: 1083.544118 | I55: 418.5355051 | J55: 582.7058824 | K55: 317.8958456 | L55: 59 | M55: 12 | N55: 56 | O55: 0 | P55: 0 | Q55: 0 | R55: 0 | S55: 0 | T55: 558 | U55: 588 | V55: 673 | W55: 895 | X55: 1059 | Y55: 1217.85 | Z55: 1376.7 | AA55: 4533.36
A56: AL005 | B56: AL005000010 | C56: WHISPERING PINES | D56: 76 | E56: 1.736842105 | F56: 2285.057209 | G56: 1833.24 | H56: 672.6578947 | I56: 399.2550041 | J56: 665.0526316 | K56: 334.9734167 | L56: 74.22666667 | M56: 0 | N56: 28 | O56: 40 | P56: 8 | Q56: 0 | R56: 0 | S56: 0 | T56: 558 | U56: 588 | V56: 673 | W56: 895 | X56: 1059 | Y56: 1217.85 | Z56: 1376.7 | AA56: 4533.36
A57: AL005 | B57: AL005000016 | C57: HOLLAND CREEK GARDENS | D57: 2 | E57: 1 | F57: 688.641772 | G57: 2730 | H57: 619.5 | I57: 336.5118143 | J57: 588 | K57: 273.3371667 | L57: 60 | M57: 0 | N57: 2 | O57: 0 | P57: 0 | Q57: 0 | R57: 0 | S57: 0 | T57: 558 | U57: 588 | V57: 673 | W57: 895 | X57: 1059 | Y57: 1217.85 | Z57: 1376.7 | AA57: 4533.36
A58: AL006 | B58: AL006000002 | C58: CLEVELAND COURT | D58: 149 | E58: 1.89261745 | F58: 4682.245672 | G58: 0 | H58: 1174.893333 | I58: 488.0926689 | J58: 747.590604 | K58: 379.2130833 | L58: 140.6241611 | M58: 0 | N58: 48 | O58: 69 | P58: 32 | Q58: 0 | R58: 0 | S58: 0 | T58: 543 | U58: 642 | V58: 723 | W58: 959 | X58: 1266 | Y58: 1455.9 | Z58: 1645.8 | AA58: 4533.36
A59: AL006 | B59: AL006000004 | C59: PATERSON COURT | D59: 200 | E59: 1.51 | F59: 3867.139777 | G59: 292.32 | H59: 1133.92 | I59: 441.1124653 | J59: 707.495 | K59: 344.3932083 | L59: 133.8686869 | M59: 14 | N59: 101 | O59: 58 | P59: 23 | Q59: 4 | R59: 0 | S59: 0 | T59: 543 | U59: 642 | V59: 723 | W59: 959 | X59: 1266 | Y59: 1455.9 | Z59: 1645.8 | AA59: 4533.36
A60: AL006 | B60: AL006000005 | C60: TRENHOLM COURT | D60: 353 | E60: 2.586402266 | F60: 4283.309188 | G60: 269.76 | H60: 1271.853107 | I60: 483.4249829 | J60: 887.1934844 | K60: 0 | L60: 38.84185224 | M60: 0 | N60: 40 | O60: 135 | P60: 126 | Q60: 35 | R60: 17 | S60: 0 | T60: 543 | U60: 642 | V60: 723 | W60: 959 | X60: 1266 | Y60: 1455.9 | Z60: 1645.8 | AA60: 4533.36
A61: AL006 | B61: AL006000006 | C61: GIBBS VILLAGE | D61: 314 | E61: 2.382165605 | F61: 4834.871726 | G61: 129 | H61: 1315.050955 | I61: 523.2446386 | J61: 859.0458599 | K61: 411.8418721 | L61: 147.2750809 | M61: 0 | N61: 72 | O61: 122 | P61: 64 | Q61: 40 | R61: 16 | S61: 0 | T61: 543 | U61: 642 | V61: 723 | W61: 959 | X61: 1266 | Y61: 1455.9 | Z61: 1645.8 | AA61: 4533.36
A62: AL006 | B62: AL006000007 | C62: GIBBS VILLAGE | D62: 188 | E62: 2.042553191 | F62: 4240.644615 | G62: 453.72 | H62: 1276.307292 | I62: 497.5613722 | J62: 772.6170213 | K62: 388.1589167 | L62: 133.8486486 | M62: 0 | N62: 48 | O62: 84 | P62: 56 | Q62: 0 | R62: 0 | S62: 0 | T62: 543 | U62: 642 | V62: 723 | W62: 959 | X62: 1266 | Y62: 1455.9 | Z62: 1645.8 | AA62: 4533.36
A63: AL006 | B63: AL006000008 | C63: SMILEY COURT | D63: 293 | E63: 2.576791809 | F63: 5699.457641 | G63: 0 | H63: 1347.119454 | I63: 587.2160563 | J63: 894.7569966 | K63: 443.6104281 | L63: 174.8829787 | M63: 0 | N63: 51 | O63: 94 | P63: 98 | Q63: 32 | R63: 14 | S63: 4 | T63: 543 | U63: 642 | V63: 723 | W63: 959 | X63: 1266 | Y63: 1455.9 | Z63: 1645.8 | AA63: 4533.36
A64: AL006 | B64: AL006000009 | C64: RICHARDSON TERRACE | D64: 90 | E64: 1.044444444 | F64: 2657.218824 | G64: 2222.4 | H64: 1073.5 | I64: 496.0932353 | J64: 645.6 | K64: 396.285375 | L64: 0 | M64: 0 | N64: 86 | O64: 4 | P64: 0 | Q64: 0 | R64: 0 | S64: 0 | T64: 543 | U64: 642 | V64: 723 | W64: 959 | X64: 1266 | Y64: 1455.9 | Z64: 1645.8 | AA64: 4533.36
A65: AL006 | B65: AL006000011 | C65: Victor Tulane Gardens | D65: 102 | E65: 2.607843137 | F65: 3966.084522 | G65: 1036.44 | H65: 797.9607843 | I65: 483.3786532 | J65: 870.627451 | K65: 411.5526977 | L65: 115.7524752 | M65: 0 | N65: 0 | O65: 46 | P65: 50 | Q65: 6 | R65: 0 | S65: 0 | T65: 543 | U65: 642 | V65: 723 | W65: 959 | X65: 1266 | Y65: 1455.9 | Z65: 1645.8 | AA65: 4533.36
A66: AL007 | B66: AL007000010 | C66: HENRY GREEN APTS. | D66: 99 | E66: 2.121212121 | F66: 3112.533695 | G66: 1436.4 | H66: 1162.868687 | I66: 475.9868795 | J66: 613.2727273 | K66: 372.3034327 | L66: 110.3191489 | M66: 0 | N66: 24 | O66: 51 | P66: 12 | Q66: 12 | R66: 0 | S66: 0 | T66: 434 | U66: 510 | V66: 578 | W66: 739 | X66: 844 | Y66: 970.6 | Z66: 1097.2 | AA66: 4533.36
A67: AL007 | B67: AL007000020 | C67: MCRAE HOMES | D67: 92 | E67: 2.22826087 | F67: 3889.723299 | G67: 638.76 | H67: 1180.695652 | I67: 475.7703219 | J67: 627.2717391 | K67: 373.7256286 | L67: 112.3522727 | M67: 0 | N67: 16 | O67: 45 | P67: 25 | Q67: 6 | R67: 0 | S67: 0 | T67: 434 | U67: 510 | V67: 578 | W67: 739 | X67: 844 | Y67: 970.6 | Z67: 1097.2 | AA67: 4533.36
A68: AL007 | B68: AL007000030 | C68: MARTIN HOMES | D68: 148 | E68: 2.432432432 | F68: 4283.125052 | G68: 307.56 | H68: 1207.918919 | I68: 483.2152758 | J68: 651.9 | K68: 379.4939538 | L68: 113.7094017 | M68: 0 | N68: 22 | O68: 66 | P68: 36 | Q68: 22 | R68: 2 | S68: 0 | T68: 434 | U68: 510 | V68: 578 | W68: 739 | X68: 844 | Y68: 970.6 | Z68: 1097.2 | AA68: 4533.36
A69: AL007 | B69: AL007000040 | C69: JOHNSON | D69: 214 | E69: 2.247663551 | F69: 3531.276234 | G69: 691.56 | H69: 1247.238318 | I69: 455.8379938 | J69: 629.8457944 | K69: 348.1166978 | L69: 110.9306931 | M69: 0 | N69: 42 | O69: 101 | P69: 47 | Q69: 24 | R69: 0 | S69: 0 | T69: 434 | U69: 510 | V69: 578 | W69: 739 | X69: 844 | Y69: 970.6 | Z69: 1097.2 | AA69: 4533.36
A70: AL007 | B70: AL007000050 | C70: USSERY AND MARVIN LEWIS VILLAGE | D70: 117 | E70: 1.709401709 | F70: 2827.673576 | G70: 1299.72 | H70: 1201.717949 | I70: 444.0997222 | J70: 581.6068376 | K70: 337.8168333 | L70: 99.90517241 | M70: 0 | N70: 64 | O70: 24 | P70: 28 | Q70: 1 | R70: 0 | S70: 0 | T70: 434 | U70: 510 | V70: 578 | W70: 739 | X70: 844 | Y70: 970.6 | Z70: 1097.2 | AA70: 4533.36
A71: AL008 | B71: AL008000002 | C71: GEORGE WASHINGTON CARVER | D71: 216 | E71: 2.277777778 | F71: 3434.495119 | G71: 907.44 | H71: 1219.384259 | I71: 463.4432815 | J71: 557.1280007 | K71: 357.4585028 | L71: 112.0837696 | M71: 0 | N71: 48 | O71: 84 | P71: 64 | Q71: 16 | R71: 4 | S71: 0 | T71: 331.4444444 | U71: 459.8518519 | V71: 510.3425926 | W71: 643.2314815 | X71: 690.8333333 | Y71: 794.4583333 | Z71: 898.0833333 | AA71: 4533.36
A72: AL008 | B72: AL008000003 | C72: FELIX HEIGHTS | D72: 127 | E72: 2.149606299 | F72: 2735.41875 | G72: 1514.16 | H72: 1240.440945 | I72: 457.5016412 | J72: 549.503937 | K72: 347.4935572 | L72: 96.7398374 | M72: 0 | N72: 30 | O72: 48 | P72: 49 | Q72: 0 | R72: 0 | S72: 0 | T72: 331 | U72: 460 | V72: 510 | W72: 643 | X72: 690 | Y72: 793.5 | Z72: 897 | AA72: 4533.36
A73: AL008 | B73: AL008000007 | C73: VALLEY CREEK HOMES | D73: 100 | E73: 2.06 | F73: 2954.475979 | G73: 1427.04 | H73: 1208.48 | I73: 465.8364151 | J73: 538.79 | K73: 358.5652605 | L73: 107.8064516 | M73: 0 | N73: 32 | O73: 38 | P73: 24 | Q73: 4 | R73: 2 | S73: 0 | T73: 331 | U73: 460 | V73: 510 | W73: 643 | X73: 690 | Y73: 793.5 | Z73: 897 | AA73: 4533.36
A74: AL008 | B74: AL008000008 | C74: RANGEDALE | D74: 130 | E74: 2.423076923 | F74: 3178.217477 | G74: 1483.44 | H74: 1302.386364 | I74: 497.0063038 | J74: 567.5230769 | K74: 382.0502024 | L74: 102.2764228 | M74: 0 | N74: 21 | O74: 54 | P74: 38 | Q74: 13 | R74: 4 | S74: 0 | T74: 331 | U74: 460 | V74: 510 | W74: 643 | X74: 690 | Y74: 793.5 | Z74: 897 | AA74: 4533.36
A75: AL009 | B75: AL009000003 | C75: HANBY MANOR | D75: 110 | E75: 2.490909091 | F75: 3619.530011 | G75: 1426.56 | H75: 1288.618182 | I75: 527.8907899 | J75: 688.8181818 | K75: 413.7866879 | L75: 141.0519481 | M75: 0 | N75: 12 | O75: 43 | P75: 44 | Q75: 11 | R75: 0 | S75: 0 | T75: 398 | U75: 504 | V75: 612 | W75: 784 | X75: 810 | Y75: 931.5 | Z75: 1053 | AA75: 4533.36
A76: AL010 | B76: AL010000001 | C76: DEMETRIUS C. NEWTON GARDENS | D76: 101 | E76: 2.356435644 | F76: 5234.795761 | G76: 871.2 | H76: 1320.107843 | I76: 618.8385618 | J76: 824.5742574 | K76: 503.9051503 | L76: 141.7065217 | M76: 0 | N76: 16 | O76: 43 | P76: 32 | Q76: 10 | R76: 0 | S76: 0 | T76: 605 | U76: 673 | V76: 750 | W76: 952 | X76: 980 | Y76: 1127 | Z76: 1274 | AA76: 4533.36
A77: AL010 | B77: AL010000002 | C77: MATTIE G. JACKSON GARDENS | D77: 199 | E77: 2.43718593 | F77: 4895.342699 | G77: 1252.8 | H77: 1365.665 | I77: 626.1542642 | J77: 834.919598 | K77: 506.0755047 | L77: 140.4213836 | M77: 0 | N77: 39 | O77: 70 | P77: 60 | Q77: 24 | R77: 6 | S77: 0 | T77: 605 | U77: 673 | V77: 750 | W77: 952 | X77: 980 | Y77: 1127 | Z77: 1274 | AA77: 4533.36
A78: AL011 | B78: AL011000001 | C78: WILLIAMS AVE. APTS. | D78: 195 | E78: 2 | F78: 3273.448015 | G78: 1046.28 | H78: 1139.241026 | I78: 454.9195859 | J78: 523.4307692 | K78: 355.1225575 | L78: 115.8461538 | M78: 16 | N78: 48 | O78: 61 | P78: 60 | Q78: 10 | R78: 0 | S78: 0 | T78: 372 | U78: 396 | V78: 499 | W78: 664 | X78: 683 | Y78: 785.45 | Z78: 887.9 | AA78: 4533.36
A79: AL011 | B79: AL011000002 | C79: LOOKOUT COURTS | D79: 88 | E79: 1.590909091 | F79: 3248.512332 | G79: 865.8 | H79: 1083.79 | I79: 433.1751943 | J79: 487.5227273 | K79: 338.4862618 | L79: 106.3125 | M79: 18 | N79: 30 | O79: 14 | P79: 22 | Q79: 4 | R79: 0 | S79: 0 | T79: 372 | U79: 396 | V79: 499 | W79: 664 | X79: 683 | Y79: 785.45 | Z79: 887.9 | AA79: 4533.36
A80: AL012 | B80: AL012000001 | C80: BANKHEAD/CARVER APTS | D80: 136 | E80: 2.323529412 | F80: 2710.741535 | G80: 1659.36 | H80: 1244.683824 | I80: 467.8987799 | J80: 600.7205882 | K80: 356.3504353 | L80: 112.1558442 | M80: 0 | N80: 19 | O80: 62 | P80: 47 | Q80: 8 | R80: 0 | S80: 0 | T80: 461 | U80: 462 | V80: 554 | W80: 692 | X80: 756 | Y80: 869.4 | Z80: 982.8 | AA80: 4533.36
A81: AL012 | B81: AL012000006 | C81: PETREE/MATHEWS APTS | D81: 186 | E81: 1.059139785 | F81: 2547.434498 | G81: 1674.24 | H81: 1068.650538 | I81: 440.8604196 | J81: 505.5215054 | K81: 344.2098198 | L81: 94.76258993 | M81: 65 | N81: 72 | O81: 23 | P81: 25 | Q81: 1 | R81: 0 | S81: 0 | T81: 461 | U81: 462 | V81: 554 | W81: 692 | X81: 756 | Y81: 869.4 | Z81: 982.8 | AA81: 4533.36
A82: AL013 | B82: AL013000001 | C82: NESTLEWOOD | D82: 96 | E82: 1.8125 | F82: 2968.886676 | G82: 2435.04 | H82: 1084.43299 | I82: 540.6966388 | J82: 757.9791667 | K82: 439.4352326 | L82: 46.89010989 | M82: 0 | N82: 38 | O82: 40 | P82: 16 | Q82: 2 | R82: 0 | S82: 0 | T82: 605 | U82: 673 | V82: 750 | W82: 952 | X82: 980 | Y82: 1127 | Z82: 1274 | AA82: 4533.36
A83: AL014 | B83: AL014000100 | C83: HEMBREE HOMES | D83: 144 | E83: 2.125 | F83: 2230.495381 | G83: 1979.88 | H83: 1258.111111 | I83: 455.712272 | J83: 550.3055556 | K83: 341.8707604 | L83: 53.45299145 | M83: 0 | N83: 40 | O83: 55 | P83: 40 | Q83: 9 | R83: 0 | S83: 0 | T83: 415 | U83: 445 | V83: 502 | W83: 678 | X83: 746 | Y83: 857.9 | Z83: 969.8 | AA83: 4533.36
A84: AL014 | B84: AL014000200 | C84: CRAIN COURTS | D84: 138 | E84: 2.297101449 | F84: 2606.08621 | G84: 1514.4 | H84: 1301.914286 | I84: 451.8679912 | J84: 567.6210145 | K84: 336.3799293 | L84: 57.96875 | M84: 1 | N84: 33 | O84: 51 | P84: 33 | Q84: 17 | R84: 3 | S84: 0 | T84: 415 | U84: 445 | V84: 502 | W84: 678 | X84: 746 | Y84: 857.9 | Z84: 969.8 | AA84: 4533.36
A85: AL014 | B85: AL014000300 | C85: ADDN MARTIN MANOR | D85: 66 | E85: 0.5454545455 | F85: 2159.4435 | G85: 2394.24 | H85: 1055.560606 | I85: 467.4318524 | J85: 433 | K85: 368.8899899 | L85: 0 | M85: 34 | N85: 28 | O85: 4 | P85: 0 | Q85: 0 | R85: 0 | S85: 0 | T85: 415 | U85: 445 | V85: 502 | W85: 678 | X85: 746 | Y85: 857.9 | Z85: 969.8 | AA85: 4533.36
A86: AL047 | B86: AL047000001 | C86: COUNCILL COURTS | D86: 139 | E86: 2.323741007 | F86: 4426.44239 | G86: 0 | H86: 1349.135714 | I86: 479.312967 | J86: 743.6755396 | K86: 0 | L86: 38.84185224 | M86: 0 | N86: 18 | O86: 72 | P86: 37 | Q86: 10 | R86: 2 | S86: 0 | T86: 514 | U86: 560 | V86: 661 | W86: 905 | X86: 993 | Y86: 1141.95 | Z86: 1290.9 | AA86: 4533.36
A87: AL047 | B87: AL047000002 | C87: BUTLER TERRACE | D87: 120 | E87: 2.2 | F87: 4425.526471 | G87: 886.68 | H87: 1337.058333 | I87: 554.1026004 | J87: 726.8491667 | K87: 437.8340208 | L87: 85.27826087 | M87: 0 | N87: 20 | O87: 62 | P87: 34 | Q87: 2 | R87: 2 | S87: 0 | T87: 514 | U87: 560 | V87: 661 | W87: 905 | X87: 993 | Y87: 1141.95 | Z87: 1290.9 | AA87: 4533.36
A88: AL047 | B88: AL047000003 | C88: SPARKMAN HOMES | D88: 165 | E88: 2.472727273 | F88: 5252.836587 | G88: 257.28 | H88: 1381.047059 | I88: 574.2636371 | J88: 777.8721212 | K88: 456.9955688 | L88: 98.27922078 | M88: 0 | N88: 14 | O88: 71 | P88: 70 | Q88: 8 | R88: 2 | S88: 0 | T88: 514 | U88: 560 | V88: 661 | W88: 905 | X88: 993 | Y88: 1141.95 | Z88: 1290.9 | AA88: 4533.36
A89: AL047 | B89: AL047000004 | C89: BUTLER TERRACE ADDITION | D89: 133 | E89: 2.45112782 | F89: 4408.117676 | G89: 879.6 | H89: 1368.492537 | I89: 554.6790679 | J89: 770.818797 | K89: 435.7863396 | L89: 87.048 | M89: 0 | N89: 12 | O89: 61 | P89: 50 | Q89: 8 | R89: 2 | S89: 0 | T89: 514 | U89: 560 | V89: 661 | W89: 905 | X89: 993 | Y89: 1141.95 | Z89: 1290.9 | AA89: 4533.36
A90: AL047 | B90: AL047000006 | C90: NORTHWOODS | D90: 232 | E90: 2.237068966 | F90: 3689.828301 | G90: 1234.56 | H90: 1368.140426 | I90: 524.3766748 | J90: 738.8353448 | K90: 404.2437979 | L90: 85.73542601 | M90: 0 | N90: 58 | O90: 86 | P90: 67 | Q90: 17 | R90: 4 | S90: 0 | T90: 514 | U90: 560 | V90: 661 | W90: 905 | X90: 993 | Y90: 1141.95 | Z90: 1290.9 | AA90: 4533.36
A91: AL047 | B91: AL047000007 | C91: NORTHWOODS ADDITION | D91: 212 | E91: 2.283018868 | F91: 3710.634671 | G91: 1049.28 | H91: 1389.877358 | I91: 512.4874071 | J91: 741.182783 | K91: 391.3278239 | L91: 96.22966507 | M91: 0 | N91: 46 | O91: 89 | P91: 53 | Q91: 19 | R91: 5 | S91: 0 | T91: 514 | U91: 560 | V91: 661 | W91: 905 | X91: 993 | Y91: 1141.95 | Z91: 1290.9 | AA91: 4533.36
A92: AL047 | B92: AL047000008 | C92: JOHNSON TOWERS | D92: 120 | E92: 0.7916666667 | F92: 2251.118255 | G92: 2696.16 | H92: 1180.383333 | I92: 510.6384657 | J92: 557.5666667 | K92: 400.4517847 | L92: 0 | M92: 38 | N92: 70 | O92: 11 | P92: 1 | Q92: 0 | R92: 0 | S92: 0 | T92: 514 | U92: 560 | V92: 661 | W92: 905 | X92: 993 | Y92: 1141.95 | Z92: 1290.9 | AA92: 4533.36
A93: AL047 | B93: AL047000010 | C93: SEARCY HOMES | D93: 78 | E93: 2.935897436 | F93: 4414.095214 | G93: 1136.16 | H93: 1501.5 | I93: 587.6437644 | J93: 839.3288462 | K93: 456.3633141 | L93: 95.91304348 | M93: 0 | N93: 9 | O93: 23 | P93: 17 | Q93: 22 | R93: 7 | S93: 0 | T93: 514 | U93: 560 | V93: 661 | W93: 905 | X93: 993 | Y93: 1141.95 | Z93: 1290.9 | AA93: 4533.36
A94: AL047 | B94: AL047000011 | C94: TODD TOWERS | D94: 100 | E94: 0.44 | F94: 2490.11828 | G94: 2476.56 | H94: 1150.42 | I94: 509.7548535 | J94: 537.87 | K94: 402.9195417 | L94: 0 | M94: 60 | N94: 37 | O94: 2 | P94: 1 | Q94: 0 | R94: 0 | S94: 0 | T94: 514 | U94: 560 | V94: 661 | W94: 905 | X94: 993 | Y94: 1141.95 | Z94: 1290.9 | AA94: 4533.36
A95: AL047 | B95: AL047000014 | C95: L.R. PATTON APTS. | D95: 105 | E95: 2.80952381 | F95: 4232.636266 | G95: 379.56 | H95: 849.2545455 | I95: 455.1257786 | J95: 872.1428571 | K95: 381.550803 | L95: 134.41 | M95: 0 | N95: 10 | O95: 0 | P95: 95 | Q95: 0 | R95: 0 | S95: 0 | T95: 514 | U95: 560 | V95: 661 | W95: 905 | X95: 993 | Y95: 1141.95 | Z95: 1290.9 | AA95: 4533.36
A96: AL047 | B96: AL047000016 | C96: SCATTERED SITES | D96: 26 | E96: 2.769230769 | F96: 3432.33847 | G96: 853.8 | H96: 877.4615385 | I96: 430.3323331 | J96: 848.6923077 | K96: 352.7502244 | L96: 152.1304348 | M96: 0 | N96: 0 | O96: 6 | P96: 20 | Q96: 0 | R96: 0 | S96: 0 | T96: 514 | U96: 560 | V96: 661 | W96: 905 | X96: 993 | Y96: 1141.95 | Z96: 1290.9 | AA96: 4533.36
A97: AL047 | B97: AL047000018 | C97: MAHOGONY ROW | D97: 12 | E97: 2.333333333 | F97: 3611.04949 | G97: 576.84 | H97: 825.0833333 | I97: 417.7477353 | J97: 742.3333333 | K97: 345.6714861 | L97: 137.0909091 | M97: 0 | N97: 0 | O97: 8 | P97: 4 | Q97: 0 | R97: 0 | S97: 0 | T97: 514 | U97: 560 | V97: 661 | W97: 905 | X97: 993 | Y97: 1141.95 | Z97: 1290.9 | AA97: 4533.36
A98: AL047 | B98: AL047000019 | C98: STONE MANOR | D98: 49 | E98: 2.102040816 | F98: 778.195314 | G98: 3743.52 | H98: 758.8 | I98: 440.0254981 | J98: 688.8163265 | K98: 361.8245208 | L98: 119.7291667 | M98: 0 | N98: 1 | O98: 42 | P98: 6 | Q98: 0 | R98: 0 | S98: 0 | T98: 514 | U98: 560 | V98: 661 | W98: 905 | X98: 993 | Y98: 1141.95 | Z98: 1290.9 | AA98: 4533.36
A99: AL047 | B99: AL047000020 | C99: WIND TRACE/COTTON ROW | D99: 24 | E99: 2 | F99: 1516.178248 | G99: 2437.08 | H99: 785.125 | I99: 394.8652707 | J99: 661 | K99: 318.8991667 | L99: 59.125 | M99: 0 | N99: 0 | O99: 24 | P99: 0 | Q99: 0 | R99: 0 | S99: 0 | T99: 514 | U99: 560 | V99: 661 | W99: 905 | X99: 993 | Y99: 1141.95 | Z99: 1290.9 | AA99: 4533.36
A100: AL047 | B100: AL047000051 | C100: BROOKSIDE | D100: 72 | E100: 1.736111111 | F100: 2914.914218 | G100: 1648.32 | H100: 1314.597222 | I100: 489.81001 | J100: 648.25 | K100: 372.6347731 | L100: 81.61971831 | M100: 0 | N100: 26 | O100: 39 | P100: 7 | Q100: 0 | R100: 0 | S100: 0 | T100: 514 | U100: 560 | V100: 661 | W100: 905 | X100: 993 | Y100: 1141.95 | Z100: 1290.9 | AA100: 4533.36
A101: AL047 | B101: AL047000052 | C101: LINCOLN | D101: 193 | E101: 2.321243523 | F101: 3891.97407 | G101: 1214.64 | H101: 1384.28866 | I101: 540.9068209 | J101: 752.3668394 | K101: 419.4623144 | L101: 90.44864865 | M101: 0 | N101: 42 | O101: 71 | P101: 60 | Q101: 16 | R101: 4 | S101: 0 | T101: 514 | U101: 560 | V101: 661 | W101: 905 | X101: 993 | Y101: 1141.95 | Z101: 1290.9 | AA101: 4533.36
A102: AL047 | B102: AL047000060 | C102: GATEWAY PLACE | D102: 48 | E102: 1.020833333 | F102: 0 | G102: 0 | H102: 0 | I102: 0 | J102: 562.1041667 | K102: 0 | L102: 38.84185224 | M102: 0 | N102: 47 | O102: 1 | P102: 0 | Q102: 0 | R102: 0 | S102: 0 | T102: 514 | U102: 560 | V102: 661 | W102: 905 | X102: 993 | Y102: 1141.95 | Z102: 1290.9 | AA102: 4533.36
A103: AL048 | B103: AL048000001 | C103: EAST ACRES | D103: 252 | E103: 2.242063492 | F103: 3518.863868 | G103: 1527.24 | H103: 1175.023622 | I103: 518.429278 | J103: 631.7880952 | K103: 413.2215623 | L103: 32.78313253 | M103: 0 | N103: 53 | O103: 115 | P103: 58 | Q103: 22 | R103: 4 | S103: 0 | T103: 451 | U103: 507 | V103: 583 | W103: 763 | X103: 791 | Y103: 909.65 | Z103: 1028.3 | AA103: 4533.36
A104: AL048 | B104: AL048000003 | C104: STERRS HOMES | D104: 202 | E104: 1.935643564 | F104: 3303.739036 | G104: 1786.56 | H104: 1144.920792 | I104: 519.6049832 | J104: 601.7524752 | K104: 415.8707209 | L104: 25.50520833 | M104: 2 | N104: 75 | O104: 73 | P104: 38 | Q104: 14 | R104: 0 | S104: 0 | T104: 451 | U104: 507 | V104: 583 | W104: 763 | X104: 791 | Y104: 909.65 | Z104: 1028.3 | AA104: 4533.36
A105: AL048 | B105: AL048000009 | C105: JORDAN-NEILL | D105: 146 | E105: 1.020547945 | F105: 2196.498984 | G105: 2889.36 | H105: 1044.226027 | I105: 510.8358008 | J105: 509.2739726 | K105: 411.1848562 | L105: 0 | M105: 0 | N105: 144 | O105: 1 | P105: 1 | Q105: 0 | R105: 0 | S105: 0 | T105: 451 | U105: 507 | V105: 583 | W105: 763 | X105: 791 | Y105: 909.65 | Z105: 1028.3 | AA105: 4533.36
A106: AL049 | B106: AL049000001 | C106: COLLEY HOMES | D106: 220 | E106: 2.263636364 | F106: 4038.967045 | G106: 1739.16 | H106: 1283.15625 | I106: 588.4449238 | J106: 658.2318182 | K106: 473.1514018 | L106: 22.53365385 | M106: 0 | N106: 32 | O106: 112 | P106: 64 | Q106: 10 | R106: 2 | S106: 0 | T106: 398 | U106: 504 | V106: 612 | W106: 784 | X106: 810 | Y106: 931.5 | Z106: 1053 | AA106: 4533.36
A107: AL049 | B107: AL049000002 | C107: CARVER VILLAGE | D107: 158 | E107: 2.221518987 | F107: 3650.376467 | G107: 1754.88 | H107: 1284.35625 | I107: 557.4730774 | J107: 651.6772152 | K107: 442.1384115 | L107: 56.17763158 | M107: 0 | N107: 26 | O107: 82 | P107: 41 | Q107: 7 | R107: 2 | S107: 0 | T107: 398 | U107: 504 | V107: 612 | W107: 784 | X107: 810 | Y107: 931.5 | Z107: 1053 | AA107: 4533.36
A108: AL049 | B108: AL049000003 | C108: EMMA SANSOM HOMES | D108: 220 | E108: 2.218181818 | F108: 3512.676136 | G108: 1868.04 | H108: 1287.836364 | I108: 555.7172931 | J108: 651.5772727 | K108: 439.6916667 | L108: 52.77725118 | M108: 0 | N108: 36 | O108: 114 | P108: 58 | Q108: 10 | R108: 2 | S108: 0 | T108: 398 | U108: 504 | V108: 612 | W108: 784 | X108: 810 | Y108: 931.5 | Z108: 1053 | AA108: 4533.36
A109: AL049 | B109: AL049000004 | C109: GATEWAY VILLAGE | D109: 106 | E109: 2.320754717 | F109: 3519.950751 | G109: 1848.84 | H109: 1311.122642 | I109: 556.6569833 | J109: 666.1509434 | K109: 438.0748443 | L109: 54.12222222 | M109: 0 | N109: 12 | O109: 54 | P109: 34 | Q109: 6 | R109: 0 | S109: 0 | T109: 398 | U109: 504 | V109: 612 | W109: 784 | X109: 810 | Y109: 931.5 | Z109: 1053 | AA109: 4533.36
A110: AL049 | B110: AL049000005 | C110: CAMPBELL COURT | D110: 150 | E110: 2.106666667 | F110: 2686.428385 | G110: 2665.92 | H110: 1281.58 | I110: 552.8217921 | J110: 639.7333333 | K110: 434.2133333 | L110: 30.99295775 | M110: 0 | N110: 22 | O110: 90 | P110: 38 | Q110: 0 | R110: 0 | S110: 0 | T110: 398 | U110: 504 | V110: 612 | W110: 784 | X110: 810 | Y110: 931.5 | Z110: 1053 | AA110: 4533.36
A111: AL049 | B111: AL049000006 | C111: STARNES PARK | D111: 102 | E111: 2.068627451 | F111: 3341.401024 | G111: 2402.52 | H111: 1280.245098 | I111: 585.3505246 | J111: 633.8431373 | K111: 467.782375 | L111: 36.48514851 | M111: 0 | N111: 16 | O111: 63 | P111: 23 | Q111: 0 | R111: 0 | S111: 0 | T111: 398 | U111: 504 | V111: 612 | W111: 784 | X111: 810 | Y111: 931.5 | Z111: 1053 | AA111: 4533.36
A112: AL049 | B112: AL049000008 | C112: NORTHSIDE HOMES | D112: 12 | E112: 1.5 | F112: 3169.783734 | G112: 882 | H112: 1351.142857 | I112: 450.2521889 | J112: 558 | K112: 333.3675061 | L112: 135.2 | M112: 0 | N112: 6 | O112: 6 | P112: 0 | Q112: 0 | R112: 0 | S112: 0 | T112: 398 | U112: 504 | V112: 612 | W112: 784 | X112: 810 | Y112: 931.5 | Z112: 1053 | AA112: 4533.36
A113: AL050 | B113: AL050000001 | C113: RIDGECREST | D113: 157 | E113: 2.445859873 | F113: 4130.63939 | G113: 864.48 | H113: 1374.681529 | I113: 530.8179786 | J113: 778.6598726 | K113: 412.7804776 | L113: 132.2 | M113: 0 | N113: 17 | O113: 73 | P113: 49 | Q113: 16 | R113: 2 | S113: 0 | T113: 454 | U113: 541 | V113: 697 | W113: 917 | X113: 942 | Y113: 1083.3 | Z113: 1224.6 | AA113: 4533.36
A114: AL050 | B114: AL050000002 | C114: DRAKE | D114: 147 | E114: 2.142857143 | F114: 3861.005177 | G114: 864.48 | H114: 1309.251701 | I114: 502.8879272 | J114: 738.9319728 | K114: 390.0512923 | L114: 132.304 | M114: 7 | N114: 30 | O114: 54 | P114: 47 | Q114: 9 | R114: 0 | S114: 0 | T114: 454 | U114: 541 | V114: 697 | W114: 917 | X114: 942 | Y114: 1083.3 | Z114: 1224.6 | AA114: 4533.36
A115: AL051 | B115: AL051000001 | C115: FIFTH COURT | D115: 163 | E115: 1.779141104 | F115: 2630.113235 | G115: 1813.08 | H115: 1133.835366 | I115: 464.7481505 | J115: 505.9595092 | K115: 361.9790998 | L115: 41.18248175 | M115: 0 | N115: 76 | O115: 53 | P115: 29 | Q115: 4 | R115: 1 | S115: 0 | T115: 325 | U115: 421 | V115: 499 | W115: 673 | X115: 876 | Y115: 1007.4 | Z115: 1138.8 | AA115: 4533.36
A116: AL052 | B116: AL052000001 | C116: WESTFIELD ADDN | D116: 165 | E116: 2.206060606 | F116: 3603.956737 | G116: 1166.88 | H116: 1373.109091 | I116: 511.9997367 | J116: 562.9878788 | K116: 392.0157942 | L116: 99.90647482 | M116: 0 | N116: 42 | O116: 60 | P116: 50 | Q116: 13 | R116: 0 | S116: 0 | T116: 425 | U116: 438 | V116: 513 | W116: 690 | X116: 709 | Y116: 815.35 | Z116: 921.7 | AA116: 4533.36
A117: AL052 | B117: AL052000004 | C117: HILLTOP | D117: 155 | E117: 1.890322581 | F117: 3053.378535 | G117: 1269.72 | H117: 1347.068323 | I117: 472.5185432 | J117: 530.6451613 | K117: 354.2322782 | L117: 92.31818182 | M117: 1 | N117: 63 | O117: 49 | P117: 36 | Q117: 6 | R117: 0 | S117: 0 | T117: 425 | U117: 438 | V117: 513 | W117: 690 | X117: 709 | Y117: 815.35 | Z117: 921.7 | AA117: 4533.36
A118: AL053 | B118: AL053000020 | C118: HAMILTON | D118: 278 | E118: 2.039568345 | F118: 2864.714894 | G118: 1207.68 | H118: 1282.826855 | I118: 446.2684791 | J118: 512.5971223 | K118: 333.454994 | L118: 112.699187 | M118: 0 | N118: 81 | O118: 115 | P118: 72 | Q118: 10 | R118: 0 | S118: 0 | T118: 324 | U118: 379 | V118: 499 | W118: 634 | X118: 877 | Y118: 1008.55 | Z118: 1140.1 | AA118: 4533.36
A119: AL053 | B119: AL053000030 | C119: DOUBLE SPRINGS | D119: 200 | E119: 2.105 | F119: 3127.28904 | G119: 1110.12 | H119: 1301.00995 | I119: 461.5322075 | J119: 514.0311443 | K119: 348.2586982 | L119: 122.3709677 | M119: 0 | N119: 65 | O119: 65 | P119: 54 | Q119: 16 | R119: 0 | S119: 0 | T119: 331.9552239 | U119: 392.2537313 | V119: 499 | W119: 621.9154229 | X119: 705.7064677 | Y119: 811.5624378 | Z119: 917.418408 | AA119: 4533.36
A120: AL054 | B120: AL054000001 | C120: CHERRY HILL HOMES | D120: 159 | E120: 2.245283019 | F120: 4754.57258 | G120: 742.2 | H120: 1242.176101 | I120: 561.5843733 | J120: 635.9622642 | K120: 368.5040639 | L120: 155.5395683 | M120: 0 | N120: 24 | O120: 78 | P120: 51 | Q120: 6 | R120: 0 | S120: 0 | T120: 481 | U120: 484 | V120: 587 | W120: 748 | X120: 928 | Y120: 1067.2 | Z120: 1206.4 | AA120: 4533.36
A121: AL054 | B121: AL054000002 | C121: CARVER HOMES | D121: 125 | E121: 2.2 | F121: 5197.200335 | G121: 336.12 | H121: 1244.133858 | I121: 564.7878495 | J121: 628.32 | K121: 373.1984494 | L121: 178.2983871 | M121: 0 | N121: 19 | O121: 64 | P121: 40 | Q121: 2 | R121: 0 | S121: 0 | T121: 481 | U121: 484 | V121: 587 | W121: 748 | X121: 928 | Y121: 1067.2 | Z121: 1206.4 | AA121: 4533.36
A122: AL054 | B122: AL054000003 | C122: MAGNOLIA GARDENS II | D122: 214 | E122: 1.088785047 | F122: 3462.681195 | G122: 2736.12 | H122: 1079.689815 | I122: 606.5393506 | J122: 493.1448598 | K122: 419.9639844 | L122: 0 | M122: 0 | N122: 195 | O122: 19 | P122: 0 | Q122: 0 | R122: 0 | S122: 0 | T122: 481 | U122: 484 | V122: 587 | W122: 748 | X122: 928 | Y122: 1067.2 | Z122: 1206.4 | AA122: 4533.36
A123: AL054 | B123: AL054000004 | C123: CARVER HEIGHTS | D123: 149 | E123: 2.268456376 | F123: 4805.225283 | G123: 634.92 | H123: 1289.553333 | I123: 560.8149022 | J123: 646.0013423 | K123: 364.2570336 | L123: 156.2739726 | M123: 0 | N123: 36 | O123: 53 | P123: 45 | Q123: 14 | R123: 1 | S123: 0 | T123: 481 | U123: 484 | V123: 587 | W123: 748 | X123: 928 | Y123: 1067.2 | Z123: 1206.4 | AA123: 4533.36
A124: AL055 | B124: AL055000001 | C124: CORDOVA HA | D124: 60 | E124: 2.333333333 | F124: 4152.684202 | G124: 1302.12 | H124: 1270.75 | I124: 560.4719151 | J124: 606.1333333 | K124: 419.7743889 | L124: 132.0350877 | M124: 0 | N124: 8 | O124: 24 | P124: 28 | Q124: 0 | R124: 0 | S124: 0 | T124: 461 | U124: 462 | V124: 554 | W124: 692 | X124: 756 | Y124: 869.4 | Z124: 982.8 | AA124: 4533.36
A125: AL056 | B125: AL056000001 | C125: SOUTH HALEYVILLE | D125: 139 | E125: 1.503597122 | F125: 2606.823439 | G125: 1738.8 | H125: 1086.079137 | I125: 452.6482158 | J125: 448.4388489 | K125: 354.6058361 | L125: 52.48818898 | M125: 28 | N125: 43 | O125: 40 | P125: 26 | Q125: 2 | R125: 0 | S125: 0 | T125: 333 | U125: 379 | V125: 499 | W125: 597 | X125: 615 | Y125: 707.25 | Z125: 799.5 | AA125: 4533.36
A126: AL056 | B126: AL056000002 | C126: SOUTH HALEYVILLE | D126: 136 | E126: 2.014705882 | F126: 2160.435059 | G126: 2261.64 | H126: 1177.566176 | I126: 466.6329883 | J126: 489.9705882 | K126: 358.4995522 | L126: 53.56153846 | M126: 2 | N126: 42 | O126: 51 | P126: 34 | Q126: 7 | R126: 0 | S126: 0 | T126: 333 | U126: 379 | V126: 499 | W126: 597 | X126: 615 | Y126: 707.25 | Z126: 799.5 | AA126: 4533.36
A127: AL057 | B127: AL057000021 | C127: DREW COURT | D127: 309 | E127: 2.220064725 | F127: 2757.32945 | G127: 1969.92 | H127: 1218.809061 | I127: 495.5081573 | J127: 589.0453074 | K127: 384.9917325 | L127: 10.55481728 | M127: 3 | N127: 71 | O127: 115 | P127: 97 | Q127: 21 | R127: 2 | S127: 0 | T127: 435 | U127: 436 | V127: 522 | W127: 704 | X127: 920 | Y127: 1058 | Z127: 1196 | AA127: 4533.36
A128: AL057 | B128: AL057000022 | C128: SYLAVON COURT | D128: 219 | E128: 1.123287671 | F128: 1846.253279 | G128: 2977.8 | H128: 994.2136364 | I128: 484.8532918 | J128: 446.6027397 | K128: 389.1017197 | L128: 0 | M128: 0 | N128: 192 | O128: 27 | P128: 0 | Q128: 0 | R128: 0 | S128: 0 | T128: 435 | U128: 436 | V128: 522 | W128: 704 | X128: 920 | Y128: 1058 | Z128: 1196 | AA128: 4533.36
A129: AL057 | B129: AL057000023 | C129: SYLAVON TOWERS | D129: 96 | E129: 1.114583333 | F129: 2763.849316 | G129: 2377.92 | H129: 1025.865979 | I129: 513.969608 | J129: 445.8541667 | K129: 417.8310241 | L129: 0 | M129: 0 | N129: 85 | O129: 11 | P129: 0 | Q129: 0 | R129: 0 | S129: 0 | T129: 435 | U129: 436 | V129: 522 | W129: 704 | X129: 920 | Y129: 1058 | Z129: 1196 | AA129: 4533.36
A130: AL058 | B130: AL058000001 | C130: NORTH WESTWOOD HGHTS | D130: 132 | E130: 1.886363636 | F130: 2547.486174 | G130: 2276.64 | H130: 1160.886364 | I130: 498.7540034 | J130: 492.1590909 | K130: 362.7568116 | L130: 65.99212598 | M130: 0 | N130: 46 | O130: 59 | P130: 23 | Q130: 4 | R130: 0 | S130: 0 | T130: 324 | U130: 379 | V130: 499 | W130: 634 | X130: 877 | Y130: 1008.55 | Z130: 1140.1 | AA130: 4533.36
A131: AL058 | B131: AL058000003 | C131: BROOK LANE II | D131: 3 | E131: 2 | F131: 2873.006205 | G131: 1032 | H131: 624.6666667 | I131: 377.4727393 | J131: 499 | K131: 291.308 | L131: 157 | M131: 0 | N131: 0 | O131: 3 | P131: 0 | Q131: 0 | R131: 0 | S131: 0 | T131: 324 | U131: 379 | V131: 499 | W131: 634 | X131: 877 | Y131: 1008.55 | Z131: 1140.1 | AA131: 4533.36
A132: AL059 | B132: AL059000010 | C132: GARY COURTS | D132: 239 | E132: 1.682008368 | F132: 2545.076333 | G132: 1761.12 | H132: 1081.677824 | I132: 448.9909847 | J132: 590.6661088 | K132: 350.8288101 | L132: 102.3930131 | M132: 38 | N132: 81 | O132: 52 | P132: 56 | Q132: 11 | R132: 1 | S132: 0 | T132: 481 | U132: 484 | V132: 587 | W132: 748 | X132: 928 | Y132: 1067.2 | Z132: 1206.4 | AA132: 4533.36
A133: AL060 | B133: AL060000010 | C133: WESTSIDE | D133: 209 | E133: 1.622009569 | F133: 3106.459106 | G133: 1614.72 | H133: 1105.282297 | I133: 485.5376436 | J133: 491.2009569 | K133: 385.8778788 | L133: 51.50857143 | M133: 0 | N133: 125 | O133: 42 | P133: 38 | Q133: 4 | R133: 0 | S133: 0 | T133: 325 | U133: 421 | V133: 499 | W133: 673 | X133: 876 | Y133: 1007.4 | Z133: 1138.8 | AA133: 4533.36
A134: AL061 | B134: AL061000011 | C134: PLEASANT HOMES | D134: 154 | E134: 2.084415584 | F134: 4852.159714 | G134: 712.08 | H134: 1293.429487 | I134: 571.4768255 | J134: 657.0253538 | K134: 464.6817162 | L134: 78.16666667 | M134: 3 | N134: 44 | O134: 54 | P134: 45 | Q134: 6 | R134: 2 | S134: 0 | T134: 432.1025641 | U134: 488.6025641 | V134: 619.5769231 | W134: 833.7115385 | X134: 893.1217949 | Y134: 1027.090064 | Z134: 1161.058333 | AA134: 4533.36
A135: AL061 | B135: AL061000012 | C135: HARDAWAY HOMES | D135: 238 | E135: 2.378151261 | F135: 5556.624479 | G135: 0 | H135: 1316.029289 | I135: 572.7197098 | J135: 776.0415966 | K135: 451.6952029 | L135: 121.7967914 | M135: 0 | N135: 37 | O135: 93 | P135: 92 | Q135: 13 | R135: 3 | S135: 0 | T135: 454 | U135: 541 | V135: 697 | W135: 917 | X135: 942 | Y135: 1083.3 | Z135: 1224.6 | AA135: 4533.36
A136: AL061 | B136: AL061000013 | C136: HYATT HOMES | D136: 241 | E136: 2.195020747 | F136: 4847.068398 | G136: 494.76 | H136: 1337.49187 | I136: 556.6091743 | J136: 737.8904564 | K136: 447.0101241 | L136: 134.7294686 | M136: 0 | N136: 68 | O136: 84 | P136: 65 | Q136: 22 | R136: 2 | S136: 0 | T136: 454 | U136: 541 | V136: 697 | W136: 917 | X136: 942 | Y136: 1083.3 | Z136: 1224.6 | AA136: 4533.36
A137: AL062 | B137: AL062000001 | C137: CRYSTAL SPRINGS | D137: 242 | E137: 2.338842975 | F137: 3156.320663 | G137: 1773.6 | H137: 1261.512295 | I137: 515.9482854 | J137: 602.8355372 | K137: 402.9656498 | L137: 60.60122699 | M137: 28 | N137: 38 | O137: 58 | P137: 72 | Q137: 34 | R137: 12 | S137: 0 | T137: 432 | U137: 469 | V137: 521 | W137: 707 | X137: 729 | Y137: 838.35 | Z137: 947.7 | AA137: 4533.36
A138: AL062 | B138: AL062000002 | C138: CRYSTAL SPRINGS | D138: 120 | E138: 2.5 | F138: 2998.391964 | G138: 1773.6 | H138: 1281.65 | I138: 504.465662 | J138: 608.7666667 | K138: 389.8474107 | L138: 91.40697674 | M138: 0 | N138: 10 | O138: 52 | P138: 46 | Q138: 12 | R138: 0 | S138: 0 | T138: 432 | U138: 469 | V138: 521 | W138: 707 | X138: 729 | Y138: 838.35 | Z138: 947.7 | AA138: 4533.36
A139: AL063 | B139: AL063000001 | C139: HARRIS APTS. | D139: 170 | E139: 1.635294118 | F139: 2442.743455 | G139: 1458.36 | H139: 1062.5 | I139: 413.6389722 | J139: 740.0941176 | K139: 318.3383542 | L139: 155.9444444 | M139: 4 | N139: 84 | O139: 56 | P139: 22 | Q139: 4 | R139: 0 | S139: 0 | T139: 605 | U139: 673 | V139: 750 | W139: 952 | X139: 980 | Y139: 1127 | Z139: 1274 | AA139: 4533.36
A140: AL064 | B140: AL064000001 | C140: MEADOWVIEW | D140: 110 | E140: 1.872727273 | F140: 2506.792297 | G140: 1981.8 | H140: 1127.727273 | I140: 468.0204656 | J140: 564.9090909 | K140: 365.1021288 | L140: 94.48484848 | M140: 12 | N140: 30 | O140: 34 | P140: 28 | Q140: 6 | R140: 0 | S140: 0 | T140: 461 | U140: 462 | V140: 554 | W140: 692 | X140: 756 | Y140: 869.4 | Z140: 982.8 | AA140: 4533.36
A141: AL065 | B141: AL065000001 | C141: HARVEY ENLOE HOMES | D141: 50 | E141: 2.4 | F141: 3430.401884 | G141: 388.32 | H141: 1163.4 | I141: 415.1913142 | J141: 555.92 | K141: 315.5805 | L141: 211.5319149 | M141: 0 | N141: 8 | O141: 20 | P141: 16 | Q141: 6 | R141: 0 | S141: 0 | T141: 415 | U141: 417 | V141: 499 | W141: 617 | X141: 768 | Y141: 883.2 | Z141: 998.4 | AA141: 4533.36
A142: AL066 | B142: AL066000001 | C142: REFORM HA | D142: 60 | E142: 2.166666667 | F142: 2473.909451 | G142: 1459.56 | H142: 1108.55 | I142: 420.1768816 | J142: 571.35 | K142: 321.0142361 | L142: 91.05172414 | M142: 0 | N142: 16 | O142: 23 | P142: 16 | Q142: 5 | R142: 0 | S142: 0 | T142: 346 | U142: 429 | V142: 516 | W142: 689 | X142: 905 | Y142: 1040.75 | Z142: 1176.5 | AA142: 4533.36
A143: AL067 | B143: AL067000001 | C143: ROBERTS APTS & SANDERFER ROAD APTS | D143: 239 | E143: 2.025104603 | F143: 3117.551315 | G143: 1615.2 | H143: 1071.975 | I143: 483.7234739 | J143: 714.183682 | K143: 386.8085435 | L143: 55.58878505 | M143: 12 | N143: 71 | O143: 75 | P143: 63 | Q143: 16 | R143: 2 | S143: 0 | T143: 514 | U143: 560 | V143: 661 | W143: 905 | X143: 993 | Y143: 1141.95 | Z143: 1290.9 | AA143: 4533.36
A144: AL068 | B144: AL068000001 | C144: MANNING | D144: 126 | E144: 1.944444444 | F144: 3482.639559 | G144: 805.44 | H144: 1138.595238 | I144: 452.2298169 | J144: 603.7460317 | K144: 353.3545541 | L144: 144.647541 | M144: 3 | N144: 43 | O144: 43 | P144: 32 | Q144: 5 | R144: 0 | S144: 0 | T144: 481 | U144: 484 | V144: 587 | W144: 748 | X144: 928 | Y144: 1067.2 | Z144: 1206.4 | AA144: 4533.36
A145: AL068 | B145: AL068000002 | C145: ARCHER VILLAGE | D145: 153 | E145: 1.823529412 | F145: 3147.163373 | G145: 667.08 | H145: 1130.493506 | I145: 412.0592033 | J145: 585.3660131 | K145: 314.2415146 | L145: 137.1891892 | M145: 0 | N145: 69 | O145: 47 | P145: 32 | Q145: 5 | R145: 0 | S145: 0 | T145: 481 | U145: 484 | V145: 587 | W145: 748 | X145: 928 | Y145: 1067.2 | Z145: 1206.4 | AA145: 4533.36
A146: AL068 | B146: AL068000003 | C146: LONG LOWE | D146: 130 | E146: 2.146153846 | F146: 3880.547801 | G146: 412.56 | H146: 1151.022727 | I146: 453.6775441 | J146: 629.1538462 | K146: 355.0740064 | L146: 146.3783784 | M146: 2 | N146: 32 | O146: 48 | P146: 41 | Q146: 7 | R146: 0 | S146: 0 | T146: 481 | U146: 484 | V146: 587 | W146: 748 | X146: 928 | Y146: 1067.2 | Z146: 1206.4 | AA146: 4533.36
A147: AL069 | B147: AL069000001 | C147: LYLE WOODS APTS | D147: 158 | E147: 2.246835443 | F147: 4103.517417 | G147: 297.48 | H147: 1218.177215 | I147: 468.2656275 | J147: 821.9936709 | K147: 364.4194789 | L147: 212.0952381 | M147: 4 | N147: 35 | O147: 48 | P147: 60 | Q147: 11 | R147: 0 | S147: 0 | T147: 605 | U147: 673 | V147: 750 | W147: 952 | X147: 980 | Y147: 1127 | Z147: 1274 | AA147: 4533.36
A148: AL070 | B148: AL070000001 | C148: LOCKE AND HAWTHORNE | D148: 149 | E148: 2.087248322 | F148: 2753.991562 | G148: 1485.48 | H148: 1073.798658 | I148: 442.7771566 | J148: 507.1248322 | K148: 346.6187429 | L148: 94.95555556 | M148: 0 | N148: 50 | O148: 45 | P148: 46 | Q148: 7 | R148: 1 | S148: 0 | T148: 360 | U148: 407 | V148: 499 | W148: 598 | X148: 644 | Y148: 740.6 | Z148: 837.2 | AA148: 4533.36
A149: AL071 | B149: AL071000001 | C149: EARNEST COURTS | D149: 183 | E149: 2.114754098 | F149: 2831.034241 | G149: 1945.2 | H149: 1085.163934 | I149: 488.4553778 | J149: 526.426776 | K149: 389.1640911 | L149: 48.17714286 | M149: 2 | N149: 47 | O149: 76 | P149: 46 | Q149: 10 | R149: 2 | S149: 0 | T149: 324 | U149: 379 | V149: 499 | W149: 634 | X149: 877 | Y149: 1008.55 | Z149: 1140.1 | AA149: 4533.36
A150: AL072 | B150: AL072000001 | C150: MOUNTAIN VIEW APTS | D150: 158 | E150: 2.291139241 | F150: 4026.541806 | G150: 1162.44 | H150: 1133.763975 | I150: 526.8954818 | J150: 819.8101266 | K150: 426.4521284 | L150: 153.4038462 | M150: 0 | N150: 32 | O150: 61 | P150: 52 | Q150: 13 | R150: 0 | S150: 0 | T150: 605 | U150: 673 | V150: 750 | W150: 952 | X150: 980 | Y150: 1127 | Z150: 1274 | AA150: 4533.36
A151: AL073 | B151: AL073000111 | C151: OZARK HA | D151: 166 | E151: 2.391566265 | F151: 3287.076594 | G151: 1526.16 | H151: 1329.077844 | I151: 511.8555098 | J151: 606.6939759 | K151: 393.8748543 | L151: 68 | M151: 2 | N151: 23 | O151: 64 | P151: 64 | Q151: 11 | R151: 2 | S151: 0 | T151: 386 | U151: 445 | V151: 499 | W151: 721 | X151: 874 | Y151: 1005.1 | Z151: 1136.2 | AA151: 4533.36
A152: AL073 | B152: AL073000222 | C152: HERRING/HILLCREST HOMES | D152: 132 | E152: 1.977272727 | F152: 3200.60514 | G152: 1158.6 | H152: 1273.462121 | I152: 469.3927635 | J152: 546.1909091 | K152: 357.5978965 | L152: 57.68032787 | M152: 0 | N152: 45 | O152: 54 | P152: 26 | Q152: 5 | R152: 2 | S152: 0 | T152: 386 | U152: 445 | V152: 499 | W152: 721 | X152: 874 | Y152: 1005.1 | Z152: 1136.2 | AA152: 4533.36
A153: AL073 | B153: AL073000333 | C153: GLENWAY HOMES | D153: 90 | E153: 2.277777778 | F153: 3899.277343 | G153: 655.92 | H153: 1311.06383 | I153: 488.8663136 | J153: 587.1233333 | K153: 376.2638303 | L153: 93.43939394 | M153: 0 | N153: 18 | O153: 38 | P153: 26 | Q153: 7 | R153: 1 | S153: 0 | T153: 386 | U153: 445 | V153: 499 | W153: 721 | X153: 874 | Y153: 1005.1 | Z153: 1136.2 | AA153: 4533.36
A154: AL074 | B154: AL074000010 | C154: BOSTON HEIGHTS | D154: 90 | E154: 1.833333333 | F154: 2622.291165 | G154: 1373.64 | H154: 1023.604396 | I154: 418.3062394 | J154: 484.5666667 | K154: 326.4969744 | L154: 96.20930233 | M154: 0 | N154: 34 | O154: 39 | P154: 15 | Q154: 2 | R154: 0 | S154: 0 | T154: 324 | U154: 379 | V154: 499 | W154: 634 | X154: 877 | Y154: 1008.55 | Z154: 1140.1 | AA154: 4533.36
A155: AL075 | B155: AL075000010 | C155: SUMMERVILLE HOMES | D155: 122 | E155: 2.450819672 | F155: 2973.429785 | G155: 1105.68 | H155: 1224.368852 | I155: 441.9649295 | J155: 583.8360656 | K155: 334.5160505 | L155: 158.5726496 | M155: 0 | N155: 8 | O155: 57 | P155: 51 | Q155: 6 | R155: 0 | S155: 0 | T155: 415 | U155: 445 | V155: 502 | W155: 678 | X155: 746 | Y155: 857.9 | Z155: 969.8 | AA155: 4533.36
A156: AL075 | B156: AL075000020 | C156: MT VERNON HOMES | D156: 100 | E156: 2.18 | F156: 2990.457483 | G156: 1237.44 | H156: 1185.26 | I156: 451.0878778 | J156: 553.489 | K156: 346.4390641 | L156: 110.9285714 | M156: 0 | N156: 19 | O156: 47 | P156: 32 | Q156: 1 | R156: 1 | S156: 0 | T156: 415 | U156: 445 | V156: 502 | W156: 678 | X156: 746 | Y156: 857.9 | Z156: 969.8 | AA156: 4533.36
A157: AL075 | B157: AL075000030 | C157: MT VERNON HOMES | D157: 139 | E157: 1.647482014 | F157: 2497.780419 | G157: 1563.12 | H157: 1146.532374 | I157: 433.9576834 | J157: 491.9064748 | K157: 331.3615967 | L157: 100.6090226 | M157: 3 | N157: 54 | O157: 71 | P157: 11 | Q157: 0 | R157: 0 | S157: 0 | T157: 415 | U157: 445 | V157: 502 | W157: 678 | X157: 746 | Y157: 857.9 | Z157: 969.8 | AA157: 4533.36
A158: AL075 | B158: AL075000040 | C158: GERALDINE HOMES | D158: 90 | E158: 1.944444444 | F158: 2837.540406 | G158: 942.96 | H158: 1187.566667 | I158: 414.0055894 | J158: 506.1222222 | K158: 310.4324535 | L158: 165.9880952 | M158: 0 | N158: 26 | O158: 44 | P158: 19 | Q158: 1 | R158: 0 | S158: 0 | T158: 372 | U158: 396 | V158: 499 | W158: 664 | X158: 683 | Y158: 785.45 | Z158: 887.9 | AA158: 4533.36
A159: AL076 | B159: AL076000001 | C159: RAY ROAD | D159: 62 | E159: 1.967741935 | F159: 2819.215513 | G159: 2217.48 | H159: 1144.241935 | I159: 515.0716542 | J159: 505.5483871 | K159: 364.189293 | L159: 45.8 | M159: 2 | N159: 18 | O159: 24 | P159: 16 | Q159: 2 | R159: 0 | S159: 0 | T159: 324 | U159: 379 | V159: 499 | W159: 634 | X159: 877 | Y159: 1008.55 | Z159: 1140.1 | AA159: 4533.36
A160: AL077 | B160: AL077000001 | C160: ROSEDALE CT | D160: 92 | E160: 2.010869565 | F160: 4891.489923 | G160: 1149.12 | H160: 1258.42623 | I160: 608.2715661 | J160: 759.9782609 | K160: 520.8229987 | L160: 111.6551724 | M160: 0 | N160: 25 | O160: 45 | P160: 18 | Q160: 4 | R160: 0 | S160: 0 | T160: 504 | U160: 582 | V160: 754 | W160: 969 | X160: 999 | Y160: 1148.85 | Z160: 1298.7 | AA160: 4533.36
A161: AL077 | B161: AL077000005 | C161: ROBERTSON TOWERS | D161: 102 | E161: 0.7450980392 | F161: 3377.364591 | G161: 2905.44 | H161: 1120.343137 | I161: 616.9391579 | J161: 564.3823529 | K161: 510.7509714 | L161: 4.263157895 | M161: 28 | N161: 73 | O161: 0 | P161: 1 | Q161: 0 | R161: 0 | S161: 0 | T161: 504 | U161: 582 | V161: 754 | W161: 969 | X161: 999 | Y161: 1148.85 | Z161: 1298.7 | AA161: 4533.36
A162: AL077 | B162: AL077000006 | C162: HAY COURT/HAY COURT ANNEX | D162: 215 | E162: 2.572093023 | F162: 5303.212384 | G162: 1649.4 | H162: 1391.224599 | I162: 695.3224944 | J162: 838.1830233 | K162: 571.2623018 | L162: 126.6797753 | M162: 0 | N162: 42 | O162: 70 | P162: 52 | Q162: 40 | R162: 11 | S162: 0 | T162: 504 | U162: 582 | V162: 754 | W162: 969 | X162: 999 | Y162: 1148.85 | Z162: 1298.7 | AA162: 4533.36
A163: AL077 | B163: AL077000009 | C163: CRESCENT EAST | D163: 178 | E163: 2.915730337 | F163: 6946.376306 | G163: 921.6 | H163: 1407.955556 | I163: 772.9943218 | J163: 892.8404494 | K163: 650.1435885 | L163: 168.7468354 | M163: 0 | N163: 12 | O163: 60 | P163: 53 | Q163: 37 | R163: 16 | S163: 0 | T163: 504 | U163: 582 | V163: 754 | W163: 969 | X163: 999 | Y163: 1148.85 | Z163: 1298.7 | AA163: 4533.36
A164: AL077 | B164: AL077000010 | C164: BRANSCOMB | D164: 96 | E164: 3.21875 | F164: 6946.170903 | G164: 552.24 | H164: 1443.364583 | I164: 745.1416146 | J164: 943.7239583 | K164: 620.5654252 | L164: 150.4787234 | M164: 0 | N164: 0 | O164: 23 | P164: 39 | Q164: 24 | R164: 10 | S164: 0 | T164: 504 | U164: 582 | V164: 754 | W164: 969 | X164: 999 | Y164: 1148.85 | Z164: 1298.7 | AA164: 4533.36
A165: AL077 | B165: AL077000011 | C165: McKenzie Court I | D165: 101 | E165: 2.02970297 | F165: 3593.473813 | G165: 438.6 | H165: 728.3168317 | I165: 396.6943666 | J165: 768.049505 | K165: 333.2417661 | L165: 156.3010753 | M165: 0 | N165: 18 | O165: 62 | P165: 21 | Q165: 0 | R165: 0 | S165: 0 | T165: 504 | U165: 582 | V165: 754 | W165: 969 | X165: 999 | Y165: 1148.85 | Z165: 1298.7 | AA165: 4533.36
A166: AL077 | B166: AL077000012 | C166: McKenzie Court II, LTD | D166: 141 | E166: 2.354609929 | F166: 2109.623577 | G166: 1817.52 | H166: 726.2631579 | I166: 387.7838946 | J166: 831.0921986 | K166: 319.1539394 | L166: 156.0526316 | M166: 0 | N166: 20 | O166: 55 | P166: 62 | Q166: 4 | R166: 0 | S166: 0 | T166: 504 | U166: 582 | V166: 754 | W166: 969 | X166: 999 | Y166: 1148.85 | Z166: 1298.7 | AA166: 4533.36
A167: AL078 | B167: AL078000001 | C167: BERRY HA | D167: 60 | E167: 2.166666667 | F167: 3282.451454 | G167: 1832.04 | H167: 1182.25 | I167: 524.7340783 | J167: 560.9666667 | K167: 417.7086667 | L167: 58.48 | M167: 0 | N167: 16 | O167: 22 | P167: 18 | Q167: 4 | R167: 0 | S167: 0 | T167: 327 | U167: 379 | V167: 499 | W167: 728 | X167: 878 | Y167: 1009.7 | Z167: 1141.4 | AA167: 4533.36
A168: AL079 | B168: AL079000001 | C168: SCOTT VILLAGE | D168: 72 | E168: 2.375 | F168: 4226.225848 | G168: 1710.12 | H168: 1152.736111 | I168: 590.7475533 | J168: 835.1805556 | K168: 486.4706782 | L168: 55.91044776 | M168: 0 | N168: 11 | O168: 27 | P168: 30 | Q168: 4 | R168: 0 | S168: 0 | T168: 605 | U168: 673 | V168: 750 | W168: 952 | X168: 980 | Y168: 1127 | Z168: 1274 | AA168: 4533.36
A169: AL080 | B169: AL080000001 | C169: MCWHORTER APTS. | D169: 57 | E169: 1.947368421 | F169: 2318.146774 | G169: 1796.28 | H169: 1122.913793 | I169: 436.4537927 | J169: 606.3684211 | K169: 334.7623649 | L169: 155.3888889 | M169: 0 | N169: 18 | O169: 24 | P169: 15 | Q169: 0 | R169: 0 | S169: 0 | T169: 451 | U169: 507 | V169: 583 | W169: 763 | X169: 791 | Y169: 909.65 | Z169: 1028.3 | AA169: 4533.36
A170: AL081 | B170: AL081000001 | C170: LYNNELLE DR APTS. | D170: 24 | E170: 1.958333333 | F170: 2805.869636 | G170: 2015.52 | H170: 1168.458333 | I170: 499.1748944 | J170: 497.75 | K170: 373.6827639 | L170: 47.5 | M170: 0 | N170: 7 | O170: 11 | P170: 6 | Q170: 0 | R170: 0 | S170: 0 | T170: 324 | U170: 379 | V170: 499 | W170: 634 | X170: 877 | Y170: 1008.55 | Z170: 1140.1 | AA170: 4533.36
A171: AL082 | B171: AL082000050 | C171: EASTWOOD HOMES | D171: 30 | E171: 1.7 | F171: 2487.64074 | G171: 1432.32 | H171: 981.4666667 | I171: 408.4859315 | J171: 476.3666667 | K171: 320.0645 | L171: 147.4444444 | M171: 0 | N171: 13 | O171: 13 | P171: 4 | Q171: 0 | R171: 0 | S171: 0 | T171: 372 | U171: 396 | V171: 499 | W171: 664 | X171: 683 | Y171: 785.45 | Z171: 887.9 | AA171: 4533.36
A172: AL083 | B172: AL083000001 | C172: COLLINSVILLE HOMES | D172: 60 | E172: 2.166666667 | F172: 2625.677834 | G172: 1296 | H172: 1182.25 | I172: 425.339207 | J172: 531.2333333 | K172: 320.6086389 | L172: 103.8833333 | M172: 0 | N172: 14 | O172: 26 | P172: 16 | Q172: 4 | R172: 0 | S172: 0 | T172: 372 | U172: 396 | V172: 499 | W172: 664 | X172: 683 | Y172: 785.45 | Z172: 887.9 | AA172: 4533.36
A173: AL084 | B173: AL084000010 | C173: VERNON COURTS | D173: 145 | E173: 1.813793103 | F173: 2940.985872 | G173: 1851.84 | H173: 1110.827586 | I173: 491.9648273 | J173: 504.4758621 | K173: 391.0923315 | L173: 58.44776119 | M173: 10 | N173: 41 | O173: 65 | P173: 24 | Q173: 5 | R173: 0 | S173: 0 | T173: 334 | U173: 415 | V173: 499 | W173: 666 | X173: 875 | Y173: 1006.25 | Z173: 1137.5 | AA173: 4533.36
A174: AL085 | B174: AL085000001 | C174: SUNNYCREST/DOGWOOD LANE | D174: 126 | E174: 2.047619048 | F174: 3500.681133 | G174: 2212.2 | H174: 1066.746032 | I174: 564.9649679 | J174: 790.8015873 | K174: 465.9524061 | L174: 53.58536585 | M174: 0 | N174: 37 | O174: 50 | P174: 35 | Q174: 4 | R174: 0 | S174: 0 | T174: 605 | U174: 673 | V174: 750 | W174: 952 | X174: 980 | Y174: 1127 | Z174: 1274 | AA174: 4533.36
A175: AL086 | B175: AL086000001 | C175: FULTON/BROOK/HICKORY/RED HOLLOW | D175: 205 | E175: 2.375609756 | F175: 4766.517003 | G175: 781.08 | H175: 1256.07767 | I175: 566.9695862 | J175: 824.4878049 | K175: 457.7787597 | L175: 117.2887701 | M175: 0 | N175: 20 | O175: 104 | P175: 65 | Q175: 16 | R175: 0 | S175: 0 | T175: 605 | U175: 673 | V175: 750 | W175: 952 | X175: 980 | Y175: 1127 | Z175: 1274 | AA175: 4533.36
A176: AL086 | B176: AL086000002 | C176: WARRIOR/CHELSEA/BRADFORD/TRAFFORD | D176: 182 | E176: 2.153846154 | F176: 3853.430006 | G176: 1285.68 | H176: 1249.247253 | I176: 532.3649448 | J176: 805.3186813 | K176: 421.9031429 | L176: 88.02923977 | M176: 6 | N176: 34 | O176: 76 | P176: 58 | Q176: 8 | R176: 0 | S176: 0 | T176: 605 | U176: 673 | V176: 750 | W176: 952 | X176: 980 | Y176: 1127 | Z176: 1274 | AA176: 4533.36
A177: AL086 | B177: AL086000003 | C177: OAK RIDGE/TERRACE MNR I/TERRACE MNR II | D177: 172 | E177: 2.372093023 | F177: 4490.826234 | G177: 28.56 | H177: 1326.831395 | I177: 487.1886798 | J177: 836.7906977 | K177: 375.3460862 | L177: 244.3614458 | M177: 0 | N177: 16 | O177: 76 | P177: 80 | Q177: 0 | R177: 0 | S177: 0 | T177: 605 | U177: 673 | V177: 750 | W177: 952 | X177: 980 | Y177: 1127 | Z177: 1274 | AA177: 4533.36
A178: AL086 | B178: AL086000004 | C178: JCHA SCATTERED SITE | D178: 14 | E178: 3 | F178: 10619.53688 | G178: 0 | H178: 837.7857143 | I178: 952.7916742 | J178: 952 | K178: 1076.369 | L178: 38.84185224 | M178: 0 | N178: 0 | O178: 0 | P178: 14 | Q178: 0 | R178: 0 | S178: 0 | T178: 605 | U178: 673 | V178: 750 | W178: 952 | X178: 980 | Y178: 1127 | Z178: 1274 | AA178: 4533.36
A179: AL087 | B179: AL087000001 | C179: PUCKETT HOMES, PATTILLO CIR.,ROBERTS CT. | D179: 185 | E179: 1.827027027 | F179: 2686.009929 | G179: 1758 | H179: 1041.887097 | I179: 457.1580855 | J179: 597.8324324 | K179: 362.4065991 | L179: 65.88957055 | M179: 20 | N179: 54 | O179: 60 | P179: 40 | Q179: 11 | R179: 0 | S179: 0 | T179: 451 | U179: 507 | V179: 583 | W179: 763 | X179: 791 | Y179: 909.65 | Z179: 1028.3 | AA179: 4533.36
A180: AL088 | B180: AL088000001 | C180: ELLIS DRIVE | D180: 141 | E180: 2.156028369 | F180: 1996.691792 | G180: 2021.52 | H180: 1179.113475 | I180: 433.1140159 | J180: 534.3829787 | K180: 325.8935248 | L180: 94.41221374 | M180: 0 | N180: 36 | O180: 54 | P180: 44 | Q180: 7 | R180: 0 | S180: 0 | T180: 374 | U180: 424 | V180: 519 | W180: 622 | X180: 670 | Y180: 770.5 | Z180: 871 | AA180: 4533.36
A181: AL089 | B181: AL089000001 | C181: JOHN SPARKMAN CT | D181: 32 | E181: 2.6875 | F181: 4247.61488 | G181: 990.48 | H181: 1335.875 | I181: 547.8149416 | J181: 864.0625 | K181: 431.2418125 | L181: 164.5333333 | M181: 0 | N181: 2 | O181: 12 | P181: 12 | Q181: 6 | R181: 0 | S181: 0 | T181: 605 | U181: 673 | V181: 750 | W181: 952 | X181: 980 | Y181: 1127 | Z181: 1274 | AA181: 4533.36
A182: AL090 | B182: AL090000001 | C182: STALCUP CIRCLE | D182: 62 | E182: 2 | F182: 2632.915571 | G182: 1594.92 | H182: 1142.096774 | I182: 447.5107147 | J182: 525.3225806 | K182: 344.65525 | L182: 114.5 | M182: 0 | N182: 17 | O182: 28 | P182: 17 | Q182: 0 | R182: 0 | S182: 0 | T182: 325 | U182: 421 | V182: 499 | W182: 673 | X182: 876 | Y182: 1007.4 | Z182: 1138.8 | AA182: 4533.36
A183: AL091 | B183: AL091001003 | C183: STONE CREEK | D183: 105 | E183: 2.00952381 | F183: 2172.181834 | G183: 2118.96 | H183: 1309.971429 | I183: 466.7689371 | J183: 533.352381 | K183: 348.2152619 | L183: 88.14563107 | M183: 0 | N183: 28 | O183: 50 | P183: 25 | Q183: 2 | R183: 0 | S183: 0 | T183: 415 | U183: 445 | V183: 502 | W183: 678 | X183: 746 | Y183: 857.9 | Z183: 969.8 | AA183: 4533.36
A184: AL093 | B184: AL093000001 | C184: CENTRAL ACRES | D184: 51 | E184: 2.725490196 | F184: 3176.23468 | G184: 2310.72 | H184: 1260.588235 | I184: 562.3119254 | J184: 637.0196078 | K184: 446.7738856 | L184: 89.20408163 | M184: 0 | N184: 4 | O184: 10 | P184: 33 | Q184: 4 | R184: 0 | S184: 0 | T184: 425 | U184: 438 | V184: 513 | W184: 690 | X184: 709 | Y184: 815.35 | Z184: 921.7 | AA184: 4533.36
A185: AL094 | B185: AL094000001 | C185: HOLLIS CIR APTS & WASHINGTON APTS | D185: 100 | E185: 2.29 | F185: 2399.583251 | G185: 1881.96 | H185: 1141.46 | I185: 451.9051908 | J185: 522.96 | K185: 350.0567156 | L185: 158.7142857 | M185: 0 | N185: 23 | O185: 37 | P185: 28 | Q185: 12 | R185: 0 | S185: 0 | T185: 360 | U185: 407 | V185: 499 | W185: 598 | X185: 644 | Y185: 740.6 | Z185: 837.2 | AA185: 4533.36
A186: AL095 | B186: AL095000010 | C186: MILLPORT | D186: 44 | E186: 1.818181818 | F186: 2240.42816 | G186: 1677.6 | H186: 1087.431818 | I186: 417.1021638 | J186: 502.5909091 | K186: 318.8541856 | L186: 135.6976744 | M186: 0 | N186: 18 | O186: 16 | P186: 10 | Q186: 0 | R186: 0 | S186: 0 | T186: 334 | U186: 415 | V186: 499 | W186: 666 | X186: 875 | Y186: 1006.25 | Z186: 1137.5 | AA186: 4533.36
A187: AL096 | B187: AL096000001 | C187: SOUTHSIDE COURTS | D187: 34 | E187: 2.176470588 | F187: 2957.350934 | G187: 1451.4 | H187: 1133.882353 | I187: 461.9057628 | J187: 526.2352941 | K187: 360.5983922 | L187: 133.4117647 | M187: 0 | N187: 6 | O187: 16 | P187: 12 | Q187: 0 | R187: 0 | S187: 0 | T187: 416 | U187: 418 | V187: 501 | W187: 614 | X187: 764 | Y187: 878.6 | Z187: 993.2 | AA187: 4533.36
A188: AL098 | B188: AL098000001 | C188: FRANCONIA VILLAGE | D188: 173 | E188: 2.040462428 | F188: 2725.13757 | G188: 1409.88 | H188: 1148.271676 | I188: 440.2692501 | J188: 558.8583815 | K188: 338.0074428 | L188: 102.6449704 | M188: 0 | N188: 66 | O188: 50 | P188: 43 | Q188: 12 | R188: 2 | S188: 0 | T188: 346 | U188: 429 | V188: 516 | W188: 689 | X188: 905 | Y188: 1040.75 | Z188: 1176.5 | AA188: 4533.36
A189: AL099 | B189: AL099000001 | C189: SCOTT/HUNTER HOMES ADDN | D189: 165 | E189: 2.187878788 | F189: 3010.315115 | G189: 2256.36 | H189: 1377.078313 | I189: 553.6512067 | J189: 569.3660606 | K189: 396.8734116 | L189: 31.34591195 | M189: 10 | N189: 38 | O189: 50 | P189: 46 | Q189: 20 | R189: 1 | S189: 0 | T189: 415 | U189: 449 | V189: 499 | W189: 636 | X189: 876 | Y189: 1007.4 | Z189: 1138.8 | AA189: 4533.36
A190: AL099 | B190: AL099000002 | C190: PLEASANT HILL HOMES | D190: 150 | E190: 1.68 | F190: 3006.418558 | G190: 1765.2 | H190: 1336.126667 | I190: 508.9776363 | J190: 528.3573333 | K190: 357.6491389 | L190: 61.25174825 | M190: 33 | N190: 39 | O190: 38 | P190: 27 | Q190: 9 | R190: 4 | S190: 0 | T190: 415 | U190: 449 | V190: 499 | W190: 636 | X190: 876 | Y190: 1007.4 | Z190: 1138.8 | AA190: 4533.36
A191: AL100 | B191: AL100000001 | C191: COLUMBIA HA | D191: 17 | E191: 2.352941176 | F191: 3639.764104 | G191: 1433.52 | H191: 1254.529412 | I191: 527.2872513 | J191: 651.2352941 | K191: 415.7611667 | L191: 124.25 | M191: 0 | N191: 3 | O191: 5 | P191: 9 | Q191: 0 | R191: 0 | S191: 0 | T191: 434 | U191: 510 | V191: 578 | W191: 739 | X191: 844 | Y191: 970.6 | Z191: 1097.2 | AA191: 4533.36
A192: AL101 | B192: AL101000001 | C192: ABBEVILLE HOUSING AUTH | D192: 40 | E192: 2.15 | F192: 2559.980144 | G192: 1750.8 | H192: 1094.825 | I192: 450.4837777 | J192: 522.95 | K192: 351.9586795 | L192: 126.5833333 | M192: 0 | N192: 8 | O192: 18 | P192: 14 | Q192: 0 | R192: 0 | S192: 0 | T192: 326 | U192: 449 | V192: 499 | W192: 596 | X192: 615 | Y192: 707.25 | Z192: 799.5 | AA192: 4533.36
A193: AL102 | B193: AL102000001 | C193: SNEAD HOMES | D193: 97 | E193: 1.907216495 | F193: 2796.983909 | G193: 1298.64 | H193: 1120.917526 | I193: 434.7028358 | J193: 653.159847 | K193: 335.0796254 | L193: 114.0927835 | M193: 2 | N193: 23 | O193: 54 | P193: 18 | Q193: 0 | R193: 0 | S193: 0 | T193: 451.3505155 | U193: 547.556701 | V193: 647.5670103 | W193: 827.2989691 | X193: 853.814433 | Y193: 981.8865979 | Z193: 1109.958763 | AA193: 4533.36
A194: AL103 | B194: AL103000001 | C194: HOLMAN HOMES | D194: 34 | E194: 2.235294118 | F194: 2556.592584 | G194: 1534.2 | H194: 1118.235294 | I194: 434.080656 | J194: 629 | K194: 333.8002892 | L194: 107.9677419 | M194: 0 | N194: 6 | O194: 16 | P194: 10 | Q194: 2 | R194: 0 | S194: 0 | T194: 434 | U194: 510 | V194: 578 | W194: 739 | X194: 844 | Y194: 970.6 | Z194: 1097.2 | AA194: 4533.36
A195: AL104 | B195: AL104000001 | C195: WILLOW LANE | D195: 53 | E195: 1.509433962 | F195: 2589.714669 | G195: 1458.48 | H195: 919.1132075 | I195: 413.9488319 | J195: 559.3773585 | K195: 330.5410881 | L195: 35.48076923 | M195: 0 | N195: 35 | O195: 10 | P195: 7 | Q195: 1 | R195: 0 | S195: 0 | T195: 434 | U195: 510 | V195: 578 | W195: 739 | X195: 844 | Y195: 970.6 | Z195: 1097.2 | AA195: 4533.36
A196: AL105 | B196: AL105000001 | C196: Curry Court | D196: 250 | E196: 1.408 | F196: 3003.228249 | G196: 1755.96 | H196: 1354.044 | I196: 509.433356 | J196: 506.08 | K196: 392.9339333 | L196: 76.03265306 | M196: 60 | N196: 66 | O196: 86 | P196: 38 | Q196: 0 | R196: 0 | S196: 0 | T196: 435 | U196: 436 | V196: 522 | W196: 704 | X196: 920 | Y196: 1058 | Z196: 1196 | AA196: 4533.36
A197: AL105 | B197: AL105000002 | C197: KNOXVILLE | D197: 100 | E197: 2.36 | F197: 3225.28063 | G197: 2065.08 | H197: 1461.29 | I197: 562.644192 | J197: 607.52 | K197: 432.5951667 | L197: 105.9494949 | M197: 0 | N197: 18 | O197: 36 | P197: 38 | Q197: 8 | R197: 0 | S197: 0 | T197: 435 | U197: 436 | V197: 522 | W197: 704 | X197: 920 | Y197: 1058 | Z197: 1196 | AA197: 4533.36
A198: AL105 | B198: AL105000003 | C198: WESTGATE | D198: 149 | E198: 3.067114094 | F198: 5055.033966 | G198: 1441.8 | H198: 1585.120805 | I198: 673.4934544 | J198: 725.0067114 | K198: 535.4915582 | L198: 79.6796875 | M198: 0 | N198: 0 | O198: 40 | P198: 64 | Q198: 40 | R198: 5 | S198: 0 | T198: 435 | U198: 436 | V198: 522 | W198: 704 | X198: 920 | Y198: 1058 | Z198: 1196 | AA198: 4533.36
A199: AL106 | B199: AL106000001 | C199: CRESTVIEW GARDENS | D199: 78 | E199: 2.358974359 | F199: 2912.955683 | G199: 2061.48 | H199: 1238.987179 | I199: 517.7785543 | J199: 821.9487179 | K199: 405.4423571 | L199: 86.68421053 | M199: 0 | N199: 8 | O199: 40 | P199: 24 | Q199: 6 | R199: 0 | S199: 0 | T199: 605 | U199: 673 | V199: 750 | W199: 952 | X199: 980 | Y199: 1127 | Z199: 1274 | AA199: 4533.36
A200: AL107 | B200: AL107000001 | C200: MORROW VILLAGE | D200: 125 | E200: 2.488 | F200: 3070.472496 | G200: 1578.84 | H200: 1187.544 | I200: 486.3991159 | J200: 638.152 | K200: 333.9091667 | L200: 151.3130435 | M200: 0 | N200: 18 | O200: 40 | P200: 55 | Q200: 12 | R200: 0 | S200: 0 | T200: 405 | U200: 463 | V200: 524 | W200: 717 | X200: 920 | Y200: 1058 | Z200: 1196 | AA200: 4533.36
... 2050 more rows
